{"text_format":"1","workbook":"xlsx","n_sheets":6,"sheets":["ACCEUIL MENU","Donné équipement","Donné responsable","AIDE","TABLEAU RECAP","TABLEAU RESULTAT"],"not_rendered":{"charts":0,"images":6,"macros":1,"external_links":0,"defined_names":3,"comments":0,"pivot_tables":0},"unopened":[],"bounds":{"document_bytes":16777216,"sheet_cells":100000,"rows_first":2000,"rows_last":500,"rows_between":2000,"halvings":0,"cell_chars":16384,"cell_head_chars":4096},"cells_cut":0,"cells_raw":0,"read":"whole","date_system":"1900"}

{"sheet":"ACCEUIL MENU","index":0,"n_rows":13,"n_cols":6,"rows_kept":13,"cut":false,"hidden":false,"merged":[[11,6,11,10],[12,6,12,10]]}
[]
[]
[]
[]
[]
[]
[]
[]
[]
[]
[]
[]
[null,"",null,null,null,""]

{"sheet":"Donné équipement","index":1,"n_rows":649,"n_cols":18,"rows_kept":649,"cut":false,"hidden":false,"merged":[]}
["Code équipement","Libellé équipement","Code famille équi","Libellé famille équi","Code état santé","Libellé état santé","Mauvais","Mise en service","Date constat santé","Durée vie théo.","Date théorique rempl.","Durée vie résid.","Date estimée rempl.","Marque","Type","Référence","Puissance","Débit"]
["ACO_ENS_A005","Autocom","ACO","Autocom",1,"Parfait",0,"2013-10-10","22/11/2016",10,"2023-10-10",8,"22/11/2024","Marque","Type","Référence","NC","NC"]
["ADO_002_C011","Adoucisseur s-s C","ADO","Adoucisseur",null,null,null,"2013-10-10"]
["ADO_003_D011","Adoucisseur s-s D","ADO","Adoucisseur",null,null,null,"2013-10-10"]
["AEG_001_A051","Armoire GTC","AEG","Armoire électrique GTC",null,null,null,"2013-10-10"]
["AEG_002_B021","Armoire GTC","AEG","Armoire électrique GTC",null,null,null,"2013-10-10"]
["AEG_003_C003","Armoire GTC","AEG","Armoire électrique GTC",null,null,null,"2013-10-10"]
["AEG_ENS_XXXX","Ensemble des AEG","AEG","Armoire électrique GTC",null,null,null,"2013-10-10"]
["AEN_001_C011","AEN 001","AEN","Armoire électrique CTA",null,null,null,"2013-10-10"]
["AEN_002_A053","AEN 002","AEN","Armoire électrique CTA",null,null,null,"2013-10-10"]
["AEN_003_B008","AEN 003","AEN","Armoire électrique CTA",null,null,null,"2013-10-10"]
["AEN_004_D011","AEN 004","AEN","Armoire électrique CTA",null,null,null,"2013-10-10"]
["AEN_005_C2CTA","AEN 005","AEN","Armoire électrique CTA",null,null,null,"2013-10-10"]
["AEN_006_A301","AEN 006","AEN","Armoire électrique CTA",null,null,null,"2013-10-10"]
["AEN_007_A301","AEN 007","AEN","Armoire électrique CTA",null,null,null,"2013-10-10"]
["AEN_008_A301","AEN 008","AEN","Armoire électrique CTA",null,null,null,"2013-10-10"]
["AEN_009_A301","AEN 009","AEN","Armoire électrique CTA",null,null,null,"2013-10-10"]
["AEN_010_A301","AEN 010","AEN","Armoire électrique CTA",null,null,null,"2013-10-10"]
["AEN_011_A301","AEN 011","AEN","Armoire électrique CTA",null,null,null,"2013-10-10"]
["AEN_012_B301","AEN 012","AEN","Armoire électrique CTA",null,null,null,"2013-10-10"]
["AEN_013_D101","AEN 013","AEN","Armoire électrique CTA",null,null,null,"2013-10-10"]
["AEN_014_E0CHA","AEN 014","AEN","Armoire électrique CTA",null,null,null,"2013-10-10"]
["AEN_015_A187","AEN 015","AEN","Armoire électrique CTA",null,null,null,"2013-10-10"]
["AEN_016_W0CHA","AEN 016","AEN","Armoire électrique CTA",null,null,null,"2007-01-11"]
["AEN_01B_C011","AEN 01B","AEN","Armoire électrique CTA",null,null,null,"2013-10-10"]
["AEN_05B_C301","AEN 05B","AEN","Armoire électrique CTA",null,null,null,"2013-10-10"]
["AEN_ENS_XXXX","Ensemble des AEN","AEN","Armoire électrique CTA",null,null,null,"2013-10-10"]
["AET_001_C301","Aérotherme circuit solaire","AET","Aérothermes",null,null,null,"2013-10-10"]
["ASC_001_A047","Ascenseur","ASC","Ascenseurs",null,null,null,"2013-10-10",null,null,null,null,null,null,null,"800 kg"]
["ASC_002_B0C003","Ascenseur","ASC","Ascenseurs",null,null,null,"2013-10-10",null,null,null,null,null,null,null,"800 kg"]
["ASC_003_C0C002","Ascenseur","ASC","Ascenseurs",null,null,null,"2013-10-10",null,null,null,null,null,null,null,"800 kg"]
["ASC_ENS_XXXX","Ensemble ascenseurs","ASC","Ascenseurs",null,null,null,"2013-10-10"]
["AST_001_C141","Armoire de stérilisation des couteaux","AST","Armoire de stérilisation",null,null,null,"2013-10-10"]
["AUV_ENS_XXXX","Auvent","AUV","Auvent",null,null,null,"2013-10-10"]
["BAG_001_W0XX","Bac à graisse","BAG","Bac à graisse",null,null,null,"2013-10-10"]
["BES_ENS_AXXX","Ballons ECS A","BES","Ballons ECS",null,null,null,"2013-10-10"]
["BES_ENS_BXXX","Ballons ECS B","BES","Ballons ECS",null,null,null,"2013-10-10"]
["BES_ENS_CXXX","Ballons ECS C","BES","Ballons ECS",null,null,null,"2013-10-10"]
["BES_ENS_DXXX","Ballons ECS D","BES","Ballons ECS",null,null,null,"2013-10-10"]
["BLS_ENS_AXXX","Eclairage de sécurité A","BLS","Eclairage de sécurité",null,null,null,"2013-10-10"]
["BLS_ENS_BXXX","Eclairage de sécurité B","BLS","Eclairage de sécurité",null,null,null,"2013-10-10"]
["BLS_ENS_CXXX","Eclairage de sécurité C","BLS","Eclairage de sécurité",null,null,null,"2013-10-10"]
["BLS_ENS_DXXX","Eclairage de sécurité D","BLS","Eclairage de sécurité",null,null,null,"2013-10-10"]
["BMM_001_C141","Batteur mélageur et mixeur","BMM","Batteur mélageur et mixeur",null,null,null,"2013-10-10"]
["BSC_001_C011","Ballon de stockage primaire - ECS cuisine","BSC","Ballon de stockage ECS",null,null,null,"2013-10-10",null,null,null,null,null,"Atlantic guillot",null,"500 L"]
["BSC_001_C018","Ballon de stockage primaire - ECS internat","BSC","Ballon de stockage ECS",null,null,null,"2013-10-10",null,null,null,null,null,null,null,"1000 L"]
["BSC_002_C011","Ballon de stockage primaire - Internat","BSC","Ballon de stockage ECS",null,null,null,"2013-10-10",null,null,null,null,null,"Atlantic guillot",null,"1000 L"]
["BSC_002_C018","Ballon de stockage chauffage internat solaire","BSC","Ballon de stockage ECS",null,null,null,"2013-10-10",null,null,null,null,null,null,null,"1500 L"]
["BSC_003_C011","Ballon de stockage ECS internat","BSC","Ballon de stockage ECS",null,null,null,"2013-10-10",null,null,null,null,null,"Atlantic guillot",null,"1000 L"]
["BSC_004_D011","Ballon de stockage primaire - ECS gymnase","BSC","Ballon de stockage ECS",null,null,null,"2013-10-10",null,null,null,null,null,"Atlantic guillot",null,"1000 L"]
["BSC_005_E0CHA","Ballon de stockage logement chauffage","BSC","Ballon de stockage ECS",null,null,null,"2013-10-10",null,null,null,null,null,"Atlantic guillot",null,"1000 L"]
["BSP_001_XXXX","Bardage","BSP","Bardage",null,null,null,"2013-10-10"]
["BUT_ENS_D001","But (football, handball, basket)","BUT","But (football,handball,basket)",null,null,null,"2013-10-10"]
["C0A_020_C011","Compteur d'eau cuisine","CPA","Compresseur d'air",null,null,null,"2013-10-10"]
["CAS_001_B024","Cassette plafonnière","CAS","Cassette de climatisation",null,null,null,"2013-10-10",null,null,null,null,null,"CARRIER","42GW","42GW200C","2,5 kW"]
["CAS_002_C135","Cassette plafonnière","CAS","Cassette de climatisation",null,null,null,"2013-10-10",null,null,null,null,null,"CARRIER","42GW","42GW200C","2,5 kW"]
["CAS_003_C133","Cassette plafonnière","CAS","Cassette de climatisation",null,null,null,"2013-10-10",null,null,null,null,null,"CARRIER","42GW","42GW200C","2,5 kW"]
["CAS_004_C130","Cassette plafonnière","CAS","Cassette de climatisation",null,null,null,"2013-10-10",null,null,null,null,null,"CARRIER","42GW","42GW200C","2,5 kW"]
["CAS_005_C006","Cassette plafonnière","CAS","Cassette de climatisation",null,null,null,"2013-10-10",null,null,null,null,null,"CARRIER","42GW","42GW200C","2,5 kW"]
["CAS_ENS_XXXX","Ensemble cassettes plafonnières","CAS","Cassette de climatisation",null,null,null,"2013-10-10",null,null,null,null,null,"CARRIER","42GW","42GW200C","2,5 kW"]
["CBF_001_C149","Chambre froide positive","CBF","Chambre froid",null,null,null,"2013-10-10",null,null,null,null,null,"DANFOSS","MPHC018SCPOOG"]
["CBF_002_C150","Chambre froide positive","CBF","Chambre froid",null,null,null,"2013-10-10",null,null,null,null,null,"DANFOSS","MPHC018SCPOOG"]
["CBF_003_C151","Chambre froide positifve","CBF","Chambre froid",null,null,null,"2013-10-10",null,null,null,null,null,"DANFOSS","MPHC018SCPOOG"]
["CBF_004_C148","Chambre froide négative","CBF","Chambre froid",null,null,null,"2013-10-10",null,null,null,null,null,"DANFOSS","LPHC018NTPOOG"]
["CCC_ENS_AXXX","Circuit chauffage A","CCC","Circuit primaire chauffage",null,null,null,"2013-10-10"]
["CCC_ENS_BXXX","Circuit chauffage B","CCC","Circuit primaire chauffage",null,null,null,"2013-10-10"]
["CCC_ENS_CXXX","Circuit chauffage C","CCC","Circuit primaire chauffage",null,null,null,"2013-10-10"]
["CCC_ENS_DXXX","Circuit chauffage D","CCC","Circuit primaire chauffage",null,null,null,"2013-10-10"]
["CCC_ENS_EXXX","Circuit chauffage E","CCC","Circuit primaire chauffage",null,null,null,"2013-10-10"]
["CCF_ENS_AXXX","Clapet coupe-feu A","CCF","Clapets coupe-feu",null,null,null,"2013-10-10"]
["CCF_ENS_BXXX","Clapet coupe-feu B","CCF","Clapets coupe-feu",null,null,null,"2013-10-10"]
["CCF_ENS_CXXX","Clapet coupe-feu C","CCF","Clapets coupe-feu",null,null,null,"2013-10-10"]
["CCF_ENS_DXXX","Clapet coupe-feu D","CCF","Clapets coupe-feu",null,null,null,"2013-10-10"]
["CHB_ENS_XXXX","Charpente","CHB","Charpente",null,null,null,"2013-10-10"]
["CHG_001_E0CHA","Chaudière","CHG","Chaudières",null,null,null,"2013-10-10",null,null,null,null,null,"DE DIETRICH","MCA 90",null,"90kW"]
["CHG_001_W0CHA","Chaudière","CHG","Chaudières",null,null,null,"2007-01-11",null,null,null,null,null,"VIESSMAN","VITOPLEX 300","TXR","875kW"]
["CHG_002_E0CHA","Chaudière","CHG","Chaudières",null,null,null,"2013-10-10",null,null,null,null,null,"DE DIETRICH","MCA 90",null,"90kW"]
["CHG_002_W0CHA","Chaudière","CHG","Chaudières",null,null,null,"2007-01-11",null,null,null,null,null,"VIESSMAN","VITOPLEX 300","TXR","875kW"]
["CHG_003_W0CHA","Chaudière","CHG","Chaudières",null,null,null,"2007-01-11",null,null,null,null,null,"VIESSMAN","VITOPLEX 300","TX3","575KW"]
["CHG_ENS_XXXX","Ensemble des chaudières","CHG","Chaudières",null,null,null,"2013-10-10"]
["CHT_001_W0EDF","Cellules HT poste ERDF","CHT","Cellule haute tension",null,null,null,"2013-10-10"]
["CHT_002_C001","Cellules HT poste internat","CHT","Cellule haute tension",null,null,null,"2013-10-10"]
["CHT_003_A052","Cellules HT poste enseignement","CHT","Cellule haute tension",null,null,null,"2013-10-10"]
["CHT_ENS_XXXX","Ensemble cellules HT","CHT","Cellule haute tension",null,null,null,"2013-10-10"]
["CLI_001_A005","Climatiseur","CLI","Climatiseur",null,null,null,"2013-10-10",null,null,null,null,null,"Atlantic Fujitsu","ASYA ","07 LGC"]
["CLI_002_A142","Climatiseur","CLI","Climatiseur",null,null,null,"2013-10-10",null,null,null,null,null,"Atlantic Fujitsu","ASYA","07 LGC"]
["CLI_003_A190","Climatiseur","CLI","Climatiseur",null,null,null,"2013-10-10",null,null,null,null,null,"Atlantic Fujitsu","ASYA","07 LGC"]
["CLI_004_A273","Climatiseur","CLI","Climatiseur",null,null,null,"2013-10-10",null,null,null,null,null,"Atlantic Fujitsu","ASYA","07 LGC"]
["CLI_005_A162","Climatiseur","CLI","Climatiseur",null,null,null,"2013-10-10",null,null,null,null,null,"Atlantic Fujitsu","ASYA","07 LGC"]
["CLI_006_B007","Climatiseur","CLI","Climatiseur",null,null,null,"2013-10-10",null,null,null,null,null,"Atlantic Fujitsu","ASYA","14 LGC"]
["CLI_007_B116","Climatiseur","CLI","Climatiseur",null,null,null,"2013-10-10",null,null,null,null,null,"Atlantic Fujitsu","ASYA","14 LGC"]
["CLI_008_C155","Climatiseur","CLI","Climatiseur",null,null,null,"2013-10-10",null,null,null,null,null,"Atlantic Fujitsu","ASYA","07 LGC"]
["CLI_ENS_XXXX","Ensemble des climatiseurs","CLI","Climatiseur",null,null,null,"2013-10-10"]
["CLO_ENS_W0XX","Clôture","CLO","Clôture",null,null,null,"2013-10-10"]
["CLS_001_C301","Capteurs solaires","CLS","Capteur solaire",null,null,null,"2013-10-10"]
["CLS_001_E0CHA","Capteurs solaires","CLS","Capteur solaire",null,null,null,"2013-10-10"]
["COA_001_A053","Compteur d'eau général A","COA","Compteur ",null,null,null,"2013-10-10",null,null,null,null,null,null,null,45728378]
["COA_001_B008","Compteur d'eau général B","COA","Compteur ",null,null,null,"2013-10-10",null,null,null,null,null,null,null,45813206]
["COA_001_C011","Compteur d'eau cuisine","COA","Compteur ",null,null,null,"2013-10-10",null,null,null,null,null,null,null,45813204]
["COA_001_D011","Compteur d'eau général D","COA","Compteur ",null,null,null,"2013-10-10"]
["COA_001_E0CHA","Compteur d'eau général E","COA","Compteur ",null,null,null,"2013-10-10",null,null,null,null,null,null,null,45813203]
["COA_001_W004","Compteur d'eau log. 01","COA","Compteur ",null,null,null,"2013-10-10",null,null,null,null,null,null,null,"C12RA102928"]
["COA_001_W0XX","Compteur d'eau général","COA","Compteur ",null,null,null,"2013-10-10"]
["COA_002_C011","Compteur d'eau froide adoucie cuisine","COA","Compteur ",null,null,null,"2013-10-10",null,null,null,null,null,null,null,12015488]
["COA_002_D011","Compteur EF  ECS","COA","Compteur ",null,null,null,"2013-10-10"]
["COA_002_E0CHA","Compteur d'eau chaufferie E","COA","Compteur ",null,null,null,"2013-10-10",null,null,null,null,null,null,null,1220348505]
["COA_002_W004","Compteur d'eau log. 02","COA","Compteur ",null,null,null,"2013-10-10",null,null,null,null,null,null,null,"C12RA102921"]
["COA_003_C011","Compteur d'eau internat","COA","Compteur ",null,null,null,"2013-10-10",null,null,null,null,null,null,null,46231781]
["COA_003_W004","Compteur d'eau log. 03","COA","Compteur ",null,null,null,"2013-10-10",null,null,null,null,null,null,null,"C12RA102924"]
["COA_004_C011","Compteur d'eau cuisine ECS adoucie ","COA","Compteur ",null,null,null,"2013-10-10",null,null,null,null,null,null,null,45742558]
["COA_004_W004","Compteur d'eau log. 04","COA","Compteur ",null,null,null,"2013-10-10",null,null,null,null,null,null,null,"C12RA102927"]
["COA_005_C011","Compteur d'eau internat ECS adoucie ","COA","Compteur ",null,null,null,"2013-10-10",null,null,null,null,null,null,null,46231776]
["COA_005_W004","Compteur d'eau log. 05","COA","Compteur ",null,null,null,"2013-10-10",null,null,null,null,null,null,null,"C13UA303820"]
["COA_006_W004","Compteur d'eau log. 06","COA","Compteur ",null,null,null,"2013-10-10",null,null,null,null,null,null,null,"C12RA102925"]
["COA_007_W004","Compteur d'eau log. 07","COA","Compteur ",null,null,null,"2013-10-10",null,null,null,null,null,null,null,"C12RA102926"]
["COA_008_W004","Compteur d'eau log. 08","COA","Compteur ",null,null,null,"2013-10-10",null,null,null,null,null,null,null,"C12RA102930"]
["COA_009_W004","Compteur d'eau log. 09","COA","Compteur ",null,null,null,"2013-10-10",null,null,null,null,null,null,null,"C12RA101239"]
["COA_010_W004","Compteur d'eau log. 10","COA","Compteur ",null,null,null,"2013-10-10",null,null,null,null,null,null,null,"C12RA102932"]
["COA_011_W004","Compteur d'eau log. 11","COA","Compteur ",null,null,null,"2013-10-10",null,null,null,null,null,null,null,"C12RA101240"]
["COA_012_W004","Compteur d'eau log. 12","COA","Compteur ",null,null,null,"2013-10-10",null,null,null,null,null,null,null,"C12RA102923"]
["COA_ENS_XXXX","Ensemble compteurs d'eau","COA","Compteur ",null,null,null,"2013-10-10"]
["COE_001_A051","TGBTn°2 Compteur général","COE","Compteur électrique",null,null,null,"2013-10-10"]
["COE_001_A086","TD201 Compteur éclairage C2.1","COE","Compteur électrique",null,null,null,"2013-10-10"]
["COE_001_A0C005","TD203 Compteur éclairage CPTE","COE","Compteur électrique",null,null,null,"2013-10-10"]
["COE_001_A0C011","TD202 Compteur éclairage CPTE","COE","Compteur électrique",null,null,null,"2013-10-10"]
["COE_001_A186","Comp. géne. éclai. amphi.","COE","Compteur électrique",null,null,null,"2013-10-10"]
["COE_001_A1C005","TD213 Compteur eclairage C2.1","COE","Compteur électrique",null,null,null,"2013-10-10"]
["COE_001_A1C012","TD212  Compteur eclairage CPTE","COE","Compteur électrique",null,null,null,"2013-10-10"]
["COE_001_A1C016","TD211  Compteur eclairage C2.1","COE","Compteur électrique",null,null,null,"2013-10-10"]
["COE_001_A2C005","TD223  Compteur C12.3 ","COE","Compteur électrique",null,null,null,"2013-10-10"]
["COE_001_A2C012","TD222 Compteur eclairage C2.1","COE","Compteur électrique",null,null,null,"2013-10-10"]
["COE_001_A2C018","TD221 Compteur eclairage C2.1","COE","Compteur électrique",null,null,null,"2013-10-10"]
["COE_001_B021","TGBT Atelier général centrale de mesure JDB","COE","Compteur électrique",null,null,null,"2013-10-10"]
["COE_001_B0C001","TD101  Compteur eclairage C2.2","COE","Compteur électrique",null,null,null,"2013-10-10"]
["COE_001_B1C001","TD111  Compteur eclairage C2.1","COE","Compteur électrique",null,null,null,"2013-10-10"]
["COE_001_B2C006","TD122 Compteur eclairage CPT2.1","COE","Compteur électrique",null,null,null,"2013-10-10"]
["COE_001_B2C008","TD121 Compteur eclairage CPT12.1","COE","Compteur électrique",null,null,null,"2013-10-10"]
["COE_001_C003","TGBTn°1 général centrale de mesure JDB","COE","Compteur électrique",null,null,null,"2013-10-10"]
["COE_001_C011","Compteur électrique AEN1","COE","Compteur électrique",null,null,null,"2013-10-10"]
["COE_001_C017","TD103 Compteur eclairage CPT2.1","COE","Compteur électrique",null,null,null,"2013-10-10"]
["COE_001_C160","TGBT Cuisine Compteur ventil internat C14.6","COE","Compteur électrique",null,null,null,"2013-10-10"]
["COE_001_C2C005","TD123 Compteur eclairage C2.1","COE","Compteur électrique",null,null,null,"2013-10-10"]
["COE_001_D0C002","TGBT gymnase compteur","COE","Compteur électrique",null,null,null,"2013-10-10"]
["COE_001_E001","Comptage élect. logement 1","COE","Compteur électrique",null,null,null,"2013-10-10"]
["COE_001_W0EDF","Compteur EDF HT","COE","Compteur électrique",null,null,null,"2013-10-10"]
["COE_002_A051","TGBTn°2 Compteur eclairage C4.1","COE","Compteur électrique",null,null,null,"2013-10-10"]
["COE_002_A053","Compteur électrique AEN2","COE","Compteur électrique",null,null,null,"2013-10-10"]
["COE_002_A0C005","TD203 Compteur BECS1 C15.2","COE","Compteur électrique",null,null,null,"2013-10-10"]
["COE_002_A0C011","TD202 Compteur BECS CDD10.2","COE","Compteur électrique",null,null,null,"2013-10-10"]
["COE_002_A1C005","TD213 Compteur BECS1 C16.5","COE","Compteur électrique",null,null,null,"2013-10-10"]
["COE_002_A1C012","TD212  Compteur cumulus bloc WC CDD11.3","COE","Compteur électrique",null,null,null,"2013-10-10"]
["COE_002_A1C016","TD211  Compteur cumulus bloc WC C19.1","COE","Compteur électrique",null,null,null,"2013-10-10"]
["COE_002_A2C005","TD223  Compteur C15.1","COE","Compteur électrique",null,null,null,"2013-10-10"]
["COE_002_A2C012","TD222 Compteur extraction VMC1 C12.1","COE","Compteur électrique",null,null,null,"2013-10-10"]
["COE_002_A2C018","TD221 Compteur extraction VMC2 C15.1","COE","Compteur électrique",null,null,null,"2013-10-10"]
["COE_002_B021","TGBT Atelier Compt général éclairage CPT2.6","COE","Compteur électrique",null,null,null,"2013-10-10"]
["COE_002_B1C001","TD111 Compteur BECS C10.4","COE","Compteur électrique",null,null,null,"2013-10-10"]
["COE_002_B2C006","TD122 Compteur BECS C11.1","COE","Compteur électrique",null,null,null,"2013-10-10"]
["COE_002_B2C008","TD121 Compteur BECS B224","COE","Compteur électrique",null,null,null,"2013-10-10"]
["COE_002_C003","TGBT n°1 Compteur écl. non public CPT 3.41","COE","Compteur électrique",null,null,null,"2013-10-10"]
["COE_002_C160","TGBT Cuisine Compteur ventil cuisine C15.1","COE","Compteur électrique",null,null,null,"2013-10-10"]
["COE_002_E002","Comptage élect. logement 2","COE","Compteur électrique",null,null,null,"2013-10-10"]
["COE_003_A051","TGBTn°2 Compteur BECS1 C8.1","COE","Compteur électrique",null,null,null,"2013-10-10"]
["COE_003_A0C005","TD203 Compteur BECS2 C17.1","COE","Compteur électrique",null,null,null,"2013-10-10"]
["COE_003_A1C005","TD213 Compteur BECS2 C17.1","COE","Compteur électrique",null,null,null,"2013-10-10"]
["COE_003_A2C005","TD223  Compteur eclairage C2.1","COE","Compteur électrique",null,null,null,"2013-10-10"]
["COE_003_A2C012","TD222 Compteur cumulus/bloc WC C12.4","COE","Compteur électrique",null,null,null,"2013-10-10"]
["COE_003_A2C018","TD221 Compteur BECS C14.5","COE","Compteur électrique",null,null,null,"2013-10-10"]
["COE_003_B008","Compteur électrique AEN3","COE","Compteur électrique",null,null,null,"2013-10-10"]
["COE_003_B021","TGBT Atelier Compteur BECS C17.1","COE","Compteur électrique",null,null,null,"2013-10-10"]
["COE_003_C160","TGBT Cuisine Compteur eclairage C2.1","COE","Compteur électrique",null,null,null,"2013-10-10"]
["COE_003_E003","Comptage élect. logement 3","COE","Compteur électrique",null,null,null,"2013-10-10"]
["COE_004_B021","TGBT Atelier Compt général ventilation C18.3","COE","Compteur électrique",null,null,null,"2013-10-10"]
["COE_004_C160","TGBT Cuisine Compteur CVC_C15.2","COE","Compteur électrique",null,null,null,"2013-10-10"]
["COE_004_D011","Compteur électrique AEN4","COE","Compteur électrique",null,null,null,"2013-10-10"]
["COE_004_E004","Comptage élect. logement 4","COE","Compteur électrique",null,null,null,"2013-10-10"]
["COE_005_C2CTA","Compteur électrique AEN5 ","COE","Compteur électrique",null,null,null,"2013-10-10"]
["COE_005_E005","Comptage élect. logement 5","COE","Compteur électrique",null,null,null,"2013-10-10"]
["COE_006_A301","Compteur électrique AEN6 ","COE","Compteur électrique",null,null,null,"2013-10-10"]
["COE_006_E006","Comptage élect. logement 6","COE","Compteur électrique",null,null,null,"2013-10-10"]
["COE_007_A301","Compteur électrique AEN7","COE","Compteur électrique",null,null,null,"2013-10-10"]
["COE_007_E007","Comptage élect. logement 7","COE","Compteur électrique",null,null,null,"2013-10-10"]
["COE_008_A301","Compteur électrique AEN8","COE","Compteur électrique",null,null,null,"2013-10-10"]
["COE_008_E008","Comptage élect. logement 8","COE","Compteur électrique",null,null,null,"2013-10-10"]
["COE_009_A301","Compteur électrique AEN9","COE","Compteur électrique",null,null,null,"2013-10-10"]
["COE_009_E009","Comptage élect. logement 9","COE","Compteur électrique",null,null,null,"2013-10-10"]
["COE_010_A301","Compteur électrique AEN10","COE","Compteur électrique",null,null,null,"2013-10-10"]
["COE_010_E010","Comptage élect. logement 10","COE","Compteur électrique",null,null,null,"2013-10-10"]
["COE_011_A301","Compteur électrique AEN11","COE","Compteur électrique",null,null,null,"2013-10-10"]
["COE_011_E011","Comptage élect. logement 11","COE","Compteur électrique",null,null,null,"2013-10-10"]
["COE_012_B301","Compteur électrique AEN12","COE","Compteur électrique",null,null,null,"2013-10-10"]
["COE_012_E012","Comptage élect. logement 12","COE","Compteur électrique",null,null,null,"2013-10-10"]
["COE_013_D101","Compteur électrique AEN13","COE","Compteur électrique",null,null,null,"2013-10-10"]
["COE_014_E0CHA","Compteur électrique AEN14","COE","Compteur électrique",null,null,null,"2013-10-10"]
["COE_015_A187","Compteur électrique AEN15","COE","Compteur électrique",null,null,null,"2013-10-10"]
["COE_01B_C011","Compteur électrique AEN1 Bis","COE","Compteur électrique",null,null,null,"2013-10-10"]
["COE_051_C2CTA","Compteur électrique AEN5 (Extracteur cuisson)","COE","Compteur électrique",null,null,null,"2013-10-10"]
["COE_052_C2CTA","Compteur électrique AEN5 (Soufflage cuisson)","COE","Compteur électrique",null,null,null,"2013-10-10"]
["COE_05B_C301","Compteur électrique AEN5 bis","COE","Compteur électrique",null,null,null,"2013-10-10"]
["COE_ENS_XXXX","Ensemble compteurs électriques","COE","Compteur électrique",null,null,null,"2013-10-10"]
["COG_001_W0CHA","Compteur gaz chaudière n°1","COG","Compteur gaz",null,null,null,"2007-01-11"]
["COG_001_W0XX","Compteur gaz général","COG","Compteur gaz",null,null,null,"2013-10-10"]
["COG_002_W0CHA","Compteur gaz chaudière n°2","COG","Compteur gaz",null,null,null,"2007-01-11"]
["COG_003_W0CHA","Compteur gaz chaudière n°3","COG","Compteur gaz",null,null,null,"2007-01-11"]
["CON_001_A053","Compteur ener. primaire s-s A","CON","Compteur d'énergie",null,null,null,"2013-10-10",null,null,null,null,null,"SHARKY",null,45811275]
["CON_001_B008","Compteur ener. primaire s-s B","CON","Compteur d'énergie",null,null,null,"2013-10-10",null,null,null,null,null,"SHARKY",null,45777357]
["CON_001_C011","Compteur ener. primaire s-s C","CON","Compteur d'énergie",null,null,null,"2013-10-10",null,null,null,null,null,"SHARKY",null,45811274]
["CON_001_D011","Compteur ener. primaire s-s D","CON","Compteur d'énergie",null,null,null,"2013-10-10"]
["CON_001_E0CHA","Compteur ener. primaire s-s E","CON","Compteur d'énergie",null,null,null,"2013-10-10"]
["CON_001_W004","Compteur ener. log. 01","CON","Compteur d'énergie",null,null,null,"2013-10-10",null,null,null,null,null,"SHARKY",null,45817424]
["CON_002_C011","Compteur ener. Logistique","CON","Compteur d'énergie",null,null,null,"2013-10-10",null,null,null,null,null,"SHARKY",null,46089813]
["CON_002_D011","Compteur ener. gymnase ECS","CON","Compteur d'énergie",null,null,null,"2013-10-10"]
["CON_002_W004","Compteur ener. log. 02","CON","Compteur d'énergie",null,null,null,"2013-10-10",null,null,null,null,null,"SHARKY",null,45817406]
["CON_003_C011","Compteur ener. cuisine","CON","Compteur d'énergie",null,null,null,"2013-10-10",null,null,null,null,null,"SHARKY",null,45817405]
["CON_003_W004","Compteur ener. log. 03","CON","Compteur d'énergie",null,null,null,"2013-10-10",null,null,null,null,null,"SHARKY",null,45817403]
["CON_004_C011","Compteur ener. cuisine ECS","CON","Compteur d'énergie",null,null,null,"2013-10-10",null,null,null,null,null,"SHARKY",null,45818840]
["CON_004_W004","Compteur ener. log. 04","CON","Compteur d'énergie",null,null,null,"2013-10-10",null,null,null,null,null,"SHARKY",null,45817401]
["CON_005_C011","Compteur ener. internat ECS","CON","Compteur d'énergie",null,null,null,"2013-10-10",null,null,null,null,null,"SHARKY",null,44912703]
["CON_005_W004","Compteur ener. log. 05","CON","Compteur d'énergie",null,null,null,"2013-10-10",null,null,null,null,null,"SHARKY",null,45817404]
["CON_006_C011","Compteur ener. ECS solaire","CON","Compteur d'énergie",null,null,null,"2013-10-10",null,null,null,null,null,"SHARKY",null,44912754]
["CON_006_W004","Compteur ener. log. 06","CON","Compteur d'énergie",null,null,null,"2013-10-10",null,null,null,null,null,"SHARKY",null,45817387]
["CON_007_C011","Compteur ener. Chauffage solaire","CON","Compteur d'énergie",null,null,null,"2013-10-10",null,null,null,null,null,"SHARKY",null,46160797]
["CON_007_W004","Compteur ener. log. 07","CON","Compteur d'énergie",null,null,null,"2013-10-10",null,null,null,null,null,"SHARKY",null,45817400]
["CON_008_W004","Compteur ener. log. 08","CON","Compteur d'énergie",null,null,null,"2013-10-10",null,null,null,null,null,"SHARKY",null,45817402]
["CON_009_W004","Compteur ener. log. 09","CON","Compteur d'énergie",null,null,null,"2013-10-10",null,null,null,null,null,"SHARKY",null,45817407]
["CON_010_W004","Compteur ener. log. 10","CON","Compteur d'énergie",null,null,null,"2013-10-10",null,null,null,null,null,"SHARKY",null,45817422]
["CON_011_W004","Compteur ener. log. 11","CON","Compteur d'énergie",null,null,null,"2013-10-10",null,null,null,null,null,"SHARKY",null,45817408]
["CON_012_W004","Compteur ener. log. 12","CON","Compteur d'énergie",null,null,null,"2013-10-10",null,null,null,null,null,"SHARKY",null,45817420]
["CON_ENS_XXXX","Ensemble compteurs d'énergie","CON","Compteur d'énergie",null,null,null,"2013-10-10"]
["CPA_001_B020-3","Compresseur d'air","CPA","Compresseur d'air",null,null,null,"2013-10-10"]
["CRE_001_W0XX","Cour de récréation","CRE","Cour de récréation",null,null,null,"2013-10-10"]
["CTA_001_A301","CTA Enseignement n°1","CTA","CTA",null,null,null,"2013-10-10",null,null,null,null,null,"WOLF","TOP170",null,"7,5 kW","13605 m3/h"]
["CTA_002_A301","CTA Enseignement n°2","CTA","CTA",null,null,null,"2013-10-10",null,null,null,null,null,"WOLF","TOP210",null,"7,5 kW","14680 m3/h"]
["CTA_003_A301","CTA Enseignement n°3","CTA","CTA",null,null,null,"2013-10-10",null,null,null,null,null,"WOLF","TOP210",null,"11 kW","15365 m3/h"]
["CTA_004_A301","CTA Enseignement n°4","CTA","CTA",null,null,null,"2013-10-10",null,null,null,null,null,"WOLF","TOP130",null,"5,5 kW","8720 m3/h"]
["CTA_005_A301","CTA Enseignement n°5","CTA","CTA",null,null,null,"2013-10-10",null,null,null,null,null,"WOLF","TOP170",null,"7,5 kW","11670 m3/h"]
["CTA_006_A301","CTA Administration","CTA","CTA",null,null,null,"2013-10-10",null,null,null,null,null,"WOLF","TOP43",null,"1,5 kW","2350 m3/h"]
["CTA_007_A301","CTA Greta","CTA","CTA",null,null,null,"2013-10-10",null,null,null,null,null,"WOLF","TOP64",null,"1,5 kW","3115 m3/h"]
["CTA_008_A187","CTA Amphitéâtre","CTA","CTA",null,null,null,"2013-10-10",null,null,null,null,null,"WOLF","TOP64",null,"2,2 kW","4000 m3/h"]
["CTA_009_C2CTA","CTA Salle à Manger","CTA","CTA",null,null,null,"2013-10-10",null,null,null,null,null,"WOLF","TOP170",null,"7,5 kW","11120 m3/h"]
["CTA_010_C2CTA","CTA Buanderie","CTA","CTA",null,null,null,"2013-10-10",null,null,null,null,null,"WOLF","TOP43",null,"1,1 kW","2030 m3/h"]
["CTA_011_C2CTA","CTA Laverie","CTA","CTA",null,null,null,"2013-10-10",null,null,null,null,null,"WOLF","KGTE43",null,"0,75 kW","2300 m3/h"]
["CTA_012_C2CTA","CTA Cuisson","CTA","CTA",null,null,null,"2013-10-10",null,null,null,null,null,"WOLF","KGTE210",null,"11 kW","16275 m3/h"]
["CTA_013_C301","CTA Internat","CTA","CTA",null,null,null,"2013-10-10",null,null,null,null,null,"WOLF","TOP96",null,"4 kW","5930 m3/h"]
["CTA_014_D101","CTA Salle de Sport","CTA","CTA",null,null,null,"2013-10-10",null,null,null,null,null,"WOLF","TOP64W",null,"2,2 kW","4000 m3/h"]
["CTA_015_D101","CTA Salle Polyvalente","CTA","CTA",null,null,null,"2013-10-10",null,null,null,null,null,"WOLF","KGTE21",null,"0,75 kW","1520 m3/h"]
["CTA_016_D101","CTA Vestiaires","CTA","CTA",null,null,null,"2013-10-10",null,null,null,null,null,"WOLF","TOP64W",null,"3 kW","4400 m3/h"]
["CTA_017_B301","CTA Atelier","CTA","CTA",null,null,null,"2013-10-10",null,null,null,null,null,"WOLF","TOP270",null,"15 kW","21510 m3/h"]
["CUI_001_C140","Plaque électrique","CUI","Plaque électrique",null,null,null,"2013-10-10"]
["CUI_ENS_C1XX","Ensemble équipements cuisine","CUI","Plaque électrique",null,null,null,"2013-10-10"]
["CVI_001_W0XX","Citerne vidange car","CVI","Citerne vidange car",null,null,null,"2013-10-10"]
["DAF_001_E101","Détecteur avertisseur autonome de fumée E101","DAF","Détecteur avertisseur de fumée",null,null,null,"2015-02-02",null,null,null,null,null,"KIDDE","10Y29"]
["DAF_001_E102","Détecteur avertisseur autonome de fumée E102","DAF","Détecteur avertisseur de fumée",null,null,null,"2015-02-02",null,null,null,null,null,"KIDDE","10Y29"]
["DAF_001_E103","Détecteur avertisseur autonome de fumée E103","DAF","Détecteur avertisseur de fumée",null,null,null,"2015-02-02",null,null,null,null,null,"KIDDE","10Y29"]
["DAF_001_E104","Détecteur avertisseur autonome de fumée E104","DAF","Détecteur avertisseur de fumée",null,null,null,"2015-02-02",null,null,null,null,null,"KIDDE","10Y29"]
["DAF_001_E105","Détecteur avertisseur autonome de fumée E105","DAF","Détecteur avertisseur de fumée",null,null,null,"2015-02-02",null,null,null,null,null,"KIDDE","10Y29"]
["DAF_001_E106","Détecteur avertisseur autonome de fumée E106","DAF","Détecteur avertisseur de fumée",null,null,null,"2015-02-02",null,null,null,null,null,"KIDDE","10Y29"]
["DAF_001_E107","Détecteur avertisseur autonome de fumée E107","DAF","Détecteur avertisseur de fumée",null,null,null,"2015-02-02",null,null,null,null,null,"KIDDE","10Y29"]
["DAF_001_E108","Détecteur avertisseur autonome de fumée E108","DAF","Détecteur avertisseur de fumée",null,null,null,"2015-02-02",null,null,null,null,null,"KIDDE","10Y29"]
["DAF_001_E109","Détecteur avertisseur autonome de fumée E109","DAF","Détecteur avertisseur de fumée",null,null,null,"2015-02-02",null,null,null,null,null,"KIDDE","10Y29"]
["DAF_001_E110","Détecteur avertisseur autonome de fumée E110","DAF","Détecteur avertisseur de fumée",null,null,null,"2015-02-02",null,null,null,null,null,"KIDDE","10Y29"]
["DAF_001_E111","Détecteur avertisseur autonome de fumée E111","DAF","Détecteur avertisseur de fumée",null,null,null,"2015-02-02",null,null,null,null,null,"KIDDE","10Y29"]
["DAF_001_E112","Détecteur avertisseur autonome de fumée E112","DAF","Détecteur avertisseur de fumée",null,null,null,"2015-02-02",null,null,null,null,null,"KIDDE","10Y29"]
["DAF_ENS_E1XX","Détecteurs avertisseurs auto. fumée logements","DAF","Détecteur avertisseur de fumée",null,null,null,"2015-02-02",null,null,null,null,null,"KIDDE","10Y29"]
["DHE_ENS_XXXX","Distribution de l'heure et sonnerie","DHE","Distribution de l'heure",null,null,null,"2013-10-10"]
["DIS_001_W0CHA","Disconnecteur chaufferie","DIS","Disconnecteur",null,null,null,"2007-01-11",null,null,null,null,null,"SOCLA","BA2760"]
["DIS_002_C011","Disconnecteur s-s C","DIS","Disconnecteur",null,null,null,"2013-10-10"]
["DIS_003_C011","Disconnecteur s-s D","DIS","Disconnecteur",null,null,null,"2013-10-10"]
["DIS_004_E0CHA","Disconnecteur s-s E","DIS","Disconnecteur",null,null,null,"2013-10-10"]
["DIS_ENS_XXXX","Ensemble disconnecteurs","DIS","Disconnecteur",null,null,null,"2013-10-10"]
["ECA_ENS_XXXX","Contrôle d'accés","ECA","Contrôles d'accès",null,null,null,"2013-10-10"]
["ECH_001_C011","Echangeur E1 primaire ECS internat","ECH","Echangeurs",null,null,null,"2013-10-10",null,null,null,null,null,null,null,null,"46 Kw"]
["ECH_001_E001","Echangeur EC/ECS logement","ECH","Echangeurs",null,null,null,"2013-10-10"]
["ECH_002_C011","Echangeur E2 secondaire ECS internat","ECH","Echangeurs",null,null,null,"2013-10-10",null,null,null,null,null,null,null,null,"513 Kw"]
["ECH_002_E002","Echangeur EC/ECS logement","ECH","Echangeurs",null,null,null,"2013-10-10"]
["ECH_003_C011","Echangeur E3 primaire chauffage internat","ECH","Echangeurs",null,null,null,"2013-10-10",null,null,null,null,null,null,null,null,"46 Kw"]
["ECH_003_E003","Echangeur EC/ECS logement","ECH","Echangeurs",null,null,null,"2013-10-10"]
["ECH_004_C011","Echangeur E4 secondaire chauffage internat","ECH","Echangeurs",null,null,null,"2013-10-10",null,null,null,null,null,null,null,null,"70 Kw"]
["ECH_004_E004","Echangeur EC/ECS logement","ECH","Echangeurs",null,null,null,"2013-10-10"]
["ECH_005_E005","Echangeur EC/ECS logement","ECH","Echangeurs",null,null,null,"2013-10-10"]
["ECH_006_E006","Echangeur EC/ECS logement","ECH","Echangeurs",null,null,null,"2013-10-10"]
["ECH_007_E007","Echangeur EC/ECS logement","ECH","Echangeurs",null,null,null,"2013-10-10"]
["ECH_008_E008","Echangeur EC/ECS logement","ECH","Echangeurs",null,null,null,"2013-10-10"]
["ECH_009_E009","Echangeur EC/ECS logement","ECH","Echangeurs",null,null,null,"2013-10-10"]
["ECH_010_E010","Echangeur EC/ECS logement","ECH","Echangeurs",null,null,null,"2013-10-10"]
["ECH_011_E011","Echangeur EC/ECS logement","ECH","Echangeurs",null,null,null,"2013-10-10"]
["ECH_012_E012","Echangeur EC/ECS logement","ECH","Echangeurs",null,null,null,"2013-10-10"]
["ECH_ENS_C011","Ensemble des échangeurs production solaire","ECH","Echangeurs",null,null,null,"2013-10-10"]
["ECH_ENS_E0XX","Ensemble échangeurs EC/ECS logements ","ECH","Echangeurs",null,null,null,"2013-10-10"]
["ECS_001_C011","Préparateur ECS cuisine","ECS","Production ECS",null,null,null,"2013-10-10",null,null,null,null,null,"Magnun","Rubis",null,"220 Kw"]
["ECS_002_C011","Préparateur ECS internat","ECS","Production ECS",null,null,null,"2013-10-10",null,null,null,null,null,"Magnun","Rubis",null,"475 Kw"]
["ECS_003_D011","Préparateur ECS gymnase","ECS","Production ECS",null,null,null,"2013-10-10",null,null,null,null,null,"Magnun","Rubis","RU 430D","475 Kw"]
["EEE_ENS_W0XX","Eclairage extérieur","EEE","Eclairage extérieur",null,null,null,"2013-10-10"]
["EEI_ENS_AXXX","Eclairage intérieur A","EEI","Eclairage intérieur",null,null,null,"2013-10-10"]
["EEI_ENS_BXXX","Eclairage intérieur B","EEI","Eclairage intérieur",null,null,null,"2013-10-10"]
["EEI_ENS_CXXX","Eclairage intérieur C","EEI","Eclairage intérieur",null,null,null,"2013-10-10"]
["EEI_ENS_DXXX","Eclairage intérieur D","EEI","Eclairage intérieur",null,null,null,"2013-10-10"]
["EEI_ENS_EXXX","Eclairage intérieur E","EEI","Eclairage intérieur",null,null,null,"2013-10-10"]
["EIN_ENS_XXXX","Intrusion","EIN","Système anti-intrusion",null,null,null,"2013-10-10"]
["EIP_ENS_XXXX","interphonie / videophonie","EIP","Interphonie",null,null,null,"2013-10-10"]
["ESC_ENS_XXXX","Escalier et garde-corps métal.","ESC","Escalier/garde-corps métal.",null,null,null,"2013-10-10"]
["ESO_ENS_XXXX","Sonorisation","ESO","Sonorisation",null,null,null,"2013-10-10"]
["EVE_ENS_W0XX","Pelouse / Arbustes","EVE","Pelouse / Arbustes",null,null,null,"2013-10-10"]
["EVS_ENS_XXXX","Vidéo surveillance","EVS","Vidéo surveillance",null,null,null,"2013-10-10"]
["EXA_011_C2CTA","Extraction Laverie","EXA","Extracteurs",null,null,null,"2013-10-10"]
["EXA_012_C2CTA","Extraction Cuisson","EXA","Extracteurs",null,null,null,"2013-10-10",null,null,null,null,null,null,null,null,null,"17000 m3/h"]
["EXI_ENS_AXXX","Extincteurs A","EXI","Extincteurs",null,null,null,"2013-10-10"]
["EXI_ENS_BXXX","Extincteurs B","EXI","Extincteurs",null,null,null,"2013-10-10"]
["EXI_ENS_CXXX","Extincteurs C","EXI","Extincteurs",null,null,null,"2013-10-10"]
["EXI_ENS_DXXX","Extincteurs D","EXI","Extincteurs",null,null,null,"2013-10-10"]
["EXU_001_A2E001","Lanterneau désenfumage ","EXU","Lanterneau désenfumage",null,null,null,"2013-10-10"]
["EXU_001_B2E001","Lanterneau désenfumage ","EXU","Lanterneau désenfumage",null,null,null,"2013-10-10"]
["EXU_001_C2E001","Lanterneau désenfumage ","EXU","Lanterneau désenfumage",null,null,null,"2013-10-10"]
["EXU_001_W0CHA","Lanterneau désenfumage ","EXU","Lanterneau désenfumage",null,null,null,"2007-01-11"]
["EXU_002_A2E002","Lanterneau désenfumage ","EXU","Lanterneau désenfumage",null,null,null,"2013-10-10"]
["EXU_002_B2E002","Lanterneau désenfumage ","EXU","Lanterneau désenfumage",null,null,null,"2013-10-10"]
["EXU_002_C2E002","Lanterneau désenfumage ","EXU","Lanterneau désenfumage",null,null,null,"2013-10-10"]
["EXU_003_A2E003","Lanterneau désenfumage ","EXU","Lanterneau désenfumage",null,null,null,"2013-10-10"]
["EXU_003_B023","Lanterneau désenfumage ","EXU","Lanterneau désenfumage",null,null,null,"2013-10-10"]
["EXU_003_C135","Lanterneau désenfumage ","EXU","Lanterneau désenfumage",null,null,null,"2013-10-10"]
["EXU_004_A2E004","Lanterneau désenfumage ","EXU","Lanterneau désenfumage",null,null,null,"2013-10-10"]
["EXU_004_B002","Lanterneau désenfumage ","EXU","Lanterneau désenfumage",null,null,null,"2013-10-10"]
["EXU_005_A2E005","Lanterneau désenfumage ","EXU","Lanterneau désenfumage",null,null,null,"2013-10-10"]
["EXU_005_B003","Lanterneau désenfumage ","EXU","Lanterneau désenfumage",null,null,null,"2013-10-10"]
["EXU_006_A269","Lanterneau désenfumage ","EXU","Lanterneau désenfumage",null,null,null,"2013-10-10"]
["EXU_006_B006-1","Lanterneau désenfumage ","EXU","Lanterneau désenfumage",null,null,null,"2013-10-10"]
["EXU_007_A270","Lanterneau désenfumage ","EXU","Lanterneau désenfumage",null,null,null,"2013-10-10"]
["EXU_007_B006-2","Lanterneau désenfumage ","EXU","Lanterneau désenfumage",null,null,null,"2013-10-10"]
["EXU_008_A0C010","Lanterneau désenfumage ","EXU","Lanterneau désenfumage",null,null,null,"2013-10-10"]
["EXU_008_B011-1","Lanterneau désenfumage ","EXU","Lanterneau désenfumage",null,null,null,"2013-10-10"]
["EXU_ENS_AXXX","Ensemble lanterneaux désenfumage A","EXU","Lanterneau désenfumage",null,null,null,"2013-10-10"]
["EXU_ENS_BXXX","Ensemble lanterneaux désenfumage B","EXU","Lanterneau désenfumage",null,null,null,"2013-10-10"]
["EXU_ENS_CXXX","Ensemble lanterneaux désenfumage C","EXU","Lanterneau désenfumage",null,null,null,"2013-10-10"]
["EXU_ENS_DXXX","Ensemble lanterneaux désenfumage D","EXU","Lanterneau désenfumage",null,null,null,"2013-10-10"]
["FOD_ENS_XXXX","Fondations structures","FOD","Fondations structures",null,null,null,"2013-10-10"]
["FOS_001_W0XX","Séparateur à hydrocarbure","FOS","Séparateur à hydrocarbure",null,null,null,"2013-10-10"]
["FOU_001_A140","Four","FOU","Four",null,null,null,"2013-10-10"]
["FOU_001_C142","Four","FOU","Four",null,null,null,"2013-10-10"]
["FRL_001_A053","Fosse de relevage (vide sanitaire bât A)","FRL","Fosse de relevage",null,null,null,"2007-01-11"]
["GTC_ENS_XXXX","GTB / GTC","GTC","GTC",null,null,null,"2013-10-10"]
["HCL_001_A221-2","Hotte à filtration","HCL","Hotte chimique laboratoire",null,null,null,"2013-10-10",null,null,null,null,null,"Trionyx","Série H","Hotte H400"]
["HCL_002_A221-2","Hotte à filtration","HCL","Hotte chimique laboratoire",null,null,null,"2013-10-10",null,null,null,null,null,"Trionyx","Série H","Hotte H400"]
["HCL_003_A217-2","Hotte à filtration","HCL","Hotte chimique laboratoire",null,null,null,"2013-10-10",null,null,null,null,null,"Trionyx","Série H","Hotte H400"]
["HCL_004_A223-2","Hotte à filtration","HCL","Hotte chimique laboratoire",null,null,null,"2013-10-10",null,null,null,null,null,"Trionyx","Série H","Hotte H400"]
["HCL_005_B017-2","Extracteur gaz d'echappement","HCL","Hotte chimique laboratoire",null,null,null,"2013-10-10",null,null,null,null,null,"FRANCE AIR","AL 200"]
["HCL_ENS_A212","Armoire ventilée produit chimique","HCL","Hotte chimique laboratoire",null,null,null,"2013-10-10",null,null,null,null,null,"Trionyx","CDV-A"]
["HCL_ENS_A2XX","Hottes à filtration","HCL","Hotte chimique laboratoire",null,null,null,"2013-10-10",null,null,null,null,null,"Trionyx","Série H","Hotte H400"]
["HCL_ENS_A301","Extracteurs sorbonnes pour hottes filtrantes","HCL","Hotte chimique laboratoire",null,null,null,"2013-10-10",null,null,null,null,null,"SEAT","Série 20 - 25 - 30"]
["HOT_001_C142","hotte cuisine","HOT","Hottes de cuisine",null,null,null,"2013-10-10"]
["HOT_002_C007","hotte laverie","HOT","Hottes de cuisine",null,null,null,"2013-10-10"]
["HOT_003_A140","hotte enseignement","HOT","Hottes de cuisine",null,null,null,"2013-10-10"]
["MAL_001_C157","Machine a laver","MAL","Machine a laver",null,null,null,"2013-10-10"]
["MEA_ENS_D001","Mur d'escalade","MEA","Mur d'escalade",null,null,null,"2013-10-10"]
["MEF_001_C141","Armoire positive ","MEF","Meuble réfrigérés",null,null,null,"2013-10-10",null,null,null,null,null,"DANFOSS","MPHC010SCPOOG"]
["MEF_002_C142","Cellule de refroidissement","MEF","Meuble réfrigérés",null,null,null,"2013-10-10",null,null,null,null,null,"DANFOSS","MPZC171MTPOOE"]
["MEF_003_C140","Vitrine","MEF","Meuble réfrigérés",null,null,null,"2013-10-10",null,null,null,null,null,"DANFOSS","MPHC034GSPOOG"]
["MEF_005_C140","Armoire réfrigérèe positive","MEF","Meuble réfrigérés",null,null,null,"2013-10-10",null,null,null,null,null,"DANFOSS","MPHC018SCPOOG"]
["MEP_ENS_AXXX","Menuiserie extérieures A","MEP","Menuiserie extérieures",null,null,null,"2013-10-10"]
["MEP_ENS_BXXX","Menuiserie extérieures B","MEP","Menuiserie extérieures",null,null,null,"2013-10-10"]
["MEP_ENS_CXXX","Menuiserie extérieures C","MEP","Menuiserie extérieures",null,null,null,"2013-10-10"]
["MEP_ENS_DXXX","Menuiserie extérieures D","MEP","Menuiserie extérieures",null,null,null,"2013-10-10"]
["MEP_ENS_EXXX","Menuiserie extérieures E","MEP","Menuiserie extérieures",null,null,null,"2013-10-10"]
["MOB_ENS_W0XX","Mobilier extérieur","MOB","Mobilier extérieur",null,null,null,"2013-10-10"]
["MOU_001_BXXX","Machines outils","MOU","Machines outils",null,null,null,"2013-10-10"]
["OBO_001_C144","Ouvre boites","OBO","Ouvre boites",null,null,null,"2013-10-10"]
["OND_001_A005","Onduleur","OND","Onduleur ",null,null,null,"2013-10-10",null,null,null,null,null,null,null,null,"3000VA"]
["OND_002_A005","Onduleur","OND","Onduleur ",null,null,null,"2013-10-10",null,null,null,null,null,null,null,null,"3000VA"]
["OND_003_A142","Onduleur","OND","Onduleur ",null,null,null,"2013-10-10",null,null,null,null,null,null,null,null,"1500VA"]
["OND_004_A142","Onduleur","OND","Onduleur ",null,null,null,"2013-10-10",null,null,null,null,null,null,null,null,"3000VA"]
["OND_005_A190","Onduleur","OND","Onduleur ",null,null,null,"2013-10-10",null,null,null,null,null,null,null,null,"1500VA"]
["OND_006_A162","Onduleur","OND","Onduleur ",null,null,null,"2013-10-10",null,null,null,null,null,null,null,null,"3000VA"]
["OND_007_A162","Onduleur","OND","Onduleur ",null,null,null,"2013-10-10",null,null,null,null,null,null,null,null,"1500VA"]
["OND_008_A225","Onduleur","OND","Onduleur ",null,null,null,"2013-10-10",null,null,null,null,null,null,null,null,"2000VA"]
["OND_009_B007","Onduleur","OND","Onduleur ",null,null,null,"2013-10-10",null,null,null,null,null,null,null,null,"3000VA"]
["OND_010_B1XX","Onduleur","OND","Onduleur ",null,null,null,"2013-10-10",null,null,null,null,null,null,null,null,"3000VA"]
["OND_011_B1XX","Onduleur","OND","Onduleur ",null,null,null,"2013-10-10",null,null,null,null,null,null,null,null,"1500VA"]
["OND_012_B2XX","Onduleur","OND","Onduleur ",null,null,null,"2013-10-10",null,null,null,null,null,null,null,null,"1500VA"]
["OND_013_C160","Onduleur","OND","Onduleur ",null,null,null,"2013-10-10",null,null,null,null,null,null,null,null,"3000VA"]
["OND_014_C2XX","Onduleur","OND","Onduleur ",null,null,null,"2013-10-10",null,null,null,null,null,null,null,null,"1500VA"]
["OND_ENS_XXXX","Ensemble onduleurs","OND","Onduleur ",null,null,null,"2013-10-10"]
["OSS_ENS_XXXX","Ossature","OSS","Ossature",null,null,null,"2013-10-10"]
["PAE_001_B023","Panneaux rayonnants","PAE","Panneaux rayonnant",null,null,null,"2013-10-10",null,null,null,null,null,"SABIANA","Pulsar","P","1,71 kW"]
["PAE_002_B027","Panneaux rayonnants","PAE","Panneaux rayonnant",null,null,null,"2013-10-10",null,null,null,null,null,"SABIANA","Pulsar","P","1,71 kW"]
["PAE_004_B017-2","Panneaux rayonnants","PAE","Panneaux rayonnant",null,null,null,"2013-10-10",null,null,null,null,null,"SABIANA","Pulsar","P","2,57 kW"]
["PAE_005_B011-1","Panneaux rayonnants","PAE","Panneaux rayonnant",null,null,null,"2013-10-10",null,null,null,null,null,"SABIANA","Pulsar","P","1,71 kW"]
["PAE_006_B011-3","Panneaux rayonnants","PAE","Panneaux rayonnant",null,null,null,"2013-10-10",null,null,null,null,null,"SABIANA","Pulsar","P","1,37 kW"]
["PAE_007_B006-1","Panneaux rayonnants","PAE","Panneaux rayonnant",null,null,null,"2013-10-10",null,null,null,null,null,"SABIANA","Pulsar","P","1,71 kW"]
["PAE_008_B006-2","Panneaux rayonnants","PAE","Panneaux rayonnant",null,null,null,"2013-10-10",null,null,null,null,null,"SABIANA","Pulsar","P","0,85 kW"]
["PAE_009_B006-3","Panneaux rayonnants","PAE","Panneaux rayonnant",null,null,null,"2013-10-10",null,null,null,null,null,"SABIANA","Pulsar","P","0,85 kW"]
["PAE_010_B003","Panneaux rayonnants","PAE","Panneaux rayonnant",null,null,null,"2013-10-10",null,null,null,null,null,"SABIANA","Pulsar","P","1,71 kW"]
["PAE_ENS_BXXX","Ensemble panneaux rayonnants B","PAE","Panneaux rayonnant",null,null,null,"2013-10-10",null,null,null,null,null,"SABIANA","Pulsar"]
["PAE_ENS_DXXX","Ensemble panneaux rayonnants D","PAE","Panneaux rayonnant",null,null,null,"2013-10-10"]
["PAS_001_W0XX","Parvis","PAS","Parvis",null,null,null,"2013-10-10"]
["PCF_ENS_AXXX","Porte coupe-feu A","PCF","Porte coupe-feu",null,null,null,"2013-10-10"]
["PCF_ENS_BXXX","Porte coupe-feu B","PCF","Porte coupe-feu",null,null,null,"2013-10-10"]
["PCF_ENS_CXXX","Porte coupe-feu C","PCF","Porte coupe-feu",null,null,null,"2013-10-10"]
["PCF_ENS_DXXX","Porte coupe-feu D","PCF","Porte coupe-feu",null,null,null,"2013-10-10"]
["PCH_001_A000","Plancher chauffant ","PCH","Plancher chauffant ",null,null,null,"2013-10-10",null,null,null,null,null,"VELTA","Easypro"]
["PCO_ENS_AXXX","Ensemble prises, inter. A","PCO","Ensemble prises, inter.",null,null,null,"2013-10-10"]
["PCO_ENS_BXXX","Ensemble prises, inter. B","PCO","Ensemble prises, inter.",null,null,null,"2013-10-10"]
["PCO_ENS_CXXX","Ensemble prises, inter. C","PCO","Ensemble prises, inter.",null,null,null,"2013-10-10"]
["PCO_ENS_DXXX","Ensemble prises, inter. D","PCO","Ensemble prises, inter.",null,null,null,"2013-10-10"]
["PCO_ENS_EXXX","Ensemble prises, inter. E","PCO","Ensemble prises, inter.",null,null,null,"2013-10-10"]
["PEL_001_BXXX","Pont élévateur","PEL","Pont élévateur",null,null,null,"2013-10-10"]
["PHL_ENS_XXXX","Propreté et hygiène des locaux","PHL","Propreté et hygiène des locaux",null,null,null,"2013-10-10"]
["PIN_001_W004","Poteau incendie 117","PIN","Poteau incendie"]
["PIN_002_W004","Poteau incendie PI122","PIN","Poteau incendie"]
["PIN_ENS_W004","Ensemble poteaux incendie PI117&PI122","PIN","Poteau incendie"]
["POR_ENS_AXXX","Portes / trappes A","POR","Porte / trappes",null,null,null,"2013-10-10"]
["POR_ENS_BXXX","Portes / trappes B","POR","Porte / trappes",null,null,null,"2013-10-10"]
["POR_ENS_CXXX","Portes / trappes C","POR","Porte / trappes",null,null,null,"2013-10-10"]
["POR_ENS_DXXX","Portes / trappes D","POR","Porte / trappes",null,null,null,"2013-10-10"]
["POR_ENS_EXXX","Portes / trappes E","POR","Porte / trappes",null,null,null,"2013-10-10"]
["PPE_001_W0CHA","Double pompe primaire été","PPE","Pompes ",null,null,null,"2007-01-11",null,null,null,null,null,"SALMSON","DIL 205-13/3",null,null,"25m3/h"]
["PPE_002_W0CHA","Double pompe primaire hiver","PPE","Pompes ",null,null,null,"2007-01-11",null,null,null,null,null,"SALMSON","DIL 210-16/185",null,null,"150m3/h"]
["PPE_004_C011","Pompe primaire P04 ECS Cuisine","PPE","Pompes ",null,null,null,"2013-10-10",null,null,null,null,null,"GRUNDFOS","MAGNA","UPS 25-55-180"]
["PPE_005_C011","Pompe primaire P05 ECS Internat","PPE","Pompes ",null,null,null,"2013-10-10",null,null,null,null,null,"GRUNDFOS","MAGNA","UPS 32-100-180"]
["PPE_006_C011","Double pompe P06 CTA","PPE","Pompes ",null,null,null,"2013-10-10",null,null,null,null,null,"GRUNDFOS","MAGNA","D 32-120 F"]
["PPE_007_C011","Double pompe P07 Internat","PPE","Pompes ",null,null,null,"2013-10-10",null,null,null,null,null,"GRUNDFOS","MAGNA","D 40-100 F"]
["PPE_008_C011","Double pompe P08 Logistique","PPE","Pompes ",null,null,null,"2013-10-10",null,null,null,null,null,"GRUNDFOS","MAGNA","D 40-100 F"]
["PPE_009_C011","Double pompe P09 Cuisine","PPE","Pompes ",null,null,null,"2013-10-10",null,null,null,null,null,"GRUNDFOS","MAGNA","D 40-100 F"]
["PPE_010_C011","Double pompe P10 Salle a manger","PPE","Pompes ",null,null,null,"2013-10-10",null,null,null,null,null,"GRUNDFOS","MAGNA","D 40-100 F"]
["PPE_011_B008","Double pompe P11 CTA","PPE","Pompes ",null,null,null,"2013-10-10",null,null,null,null,null,"GRUNDFOS","MAGNA","D 40-100 F"]
["PPE_012_B008","Double pompe P12 Radiateur","PPE","Pompes ",null,null,null,"2013-10-10",null,null,null,null,null,"GRUNDFOS","MAGNA","D 32-120 F"]
["PPE_013_B008","Double pompe P13 Panneaux rayonnant","PPE","Pompes ",null,null,null,"2013-10-10",null,null,null,null,null,"GRUNDFOS","MAGNA","D 32-120 F"]
["PPE_014_A052","Double pompe P14 CTA","PPE","Pompes ",null,null,null,"2013-10-10"]
["PPE_015_A052","Double pompe P15 Radiateur","PPE","Pompes ",null,null,null,"2013-10-10"]
["PPE_016_A052","Double pompe P16 Chauffage sol","PPE","Pompes ",null,null,null,"2013-10-10"]
["PPE_017_D011","Pompe primaire P17 ECS","PPE","Pompes ",null,null,null,"2013-10-10",null,null,null,null,null,"GRUNDFOS"]
["PPE_018_D011","Double pompe P18 CTA","PPE","Pompes ",null,null,null,"2013-10-10",null,null,null,null,null,"GRUNDFOS"]
["PPE_019_D011","Double pompe P19 Radiateur","PPE","Pompes ",null,null,null,"2013-10-10",null,null,null,null,null,"GRUNDFOS"]
["PPE_020_D011","Double pompe P20 Panneaux rayonnant","PPE","Pompes ",null,null,null,"2013-10-10",null,null,null,null,null,"GRUNDFOS"]
["PPE_021_E0CHA","Pompe chaudière","PPE","Pompes ",null,null,null,"2013-10-10"]
["PPE_022_E0CHA","Pompe chaudière","PPE","Pompes ",null,null,null,"2013-10-10"]
["PPE_023_E0CHA","Double pompes logement","PPE","Pompes ",null,null,null,"2013-10-10"]
["PPE_024_C2CTA","Pompe CTA Laverie","PPE","Pompes ",null,null,null,"2013-10-10",null,null,null,null,null,"GRUNDFOS",null,"UPS 21 - 50 F120"]
["PPE_025_C2CTA","Pompe CTA Cuisson","PPE","Pompes ",null,null,null,"2013-10-10",null,null,null,null,null,"GRUNDFOS",null,"UPS 25 - 80 180"]
["PPE_026_C301","Double pompe circuit solaire ","PPE","Pompes ",null,null,null,"2013-10-10"]
["PPE_027_C011","Double pompe solaire primaire ECS internat ","PPE","Pompes ",null,null,null,"2013-10-10"]
["PPE_028_C011","Double pompe solaire primaire chauffage int. ","PPE","Pompes ",null,null,null,"2013-10-10"]
["PPE_029_C011","Double pompe solaire secondaire ECS internat ","PPE","Pompes ",null,null,null,"2013-10-10"]
["PPE_030_C011","Double pompe solaire secondaire chauffage i. ","PPE","Pompes ",null,null,null,"2013-10-10"]
["PPE_04B_C011","Pompe bouclage ECS Cuisine","PPE","Pompes ",null,null,null,"2013-10-10",null,null,null,null,null,"GRUNDFOS","MAGNA"]
["PPE_05B_C011","Pompe bouclage ECS Internat","PPE","Pompes ",null,null,null,"2013-10-10",null,null,null,null,null,"GRUNDFOS","MAGNA"]
["PPE_17B_D011","Pompe bouclage ECS ","PPE","Pompes ",null,null,null,"2013-10-10",null,null,null,null,null,"GRUNDFOS"]
["PPE_ENS_A052","Ensemble des pompes s-s A","PPE","Pompes ",null,null,null,"2013-10-10"]
["PPE_ENS_B008","Ensemble des pompes s-s B","PPE","Pompes ",null,null,null,"2013-10-10",null,null,null,null,null,"GRUNDFOS"]
["PPE_ENS_C011","Ensemble des pompes s-s C","PPE","Pompes ",null,null,null,"2013-10-10",null,null,null,null,null,"GRUNDFOS"]
["PPE_ENS_C2CTA","Ensemble des pompes CTA C","PPE","Pompes ",null,null,null,"2013-10-10"]
["PPE_ENS_D011","Ensemble des pompes s-s D","PPE","Pompes ",null,null,null,"2013-10-10",null,null,null,null,null,"GRUNDFOS"]
["PPE_ENS_E0CHA","Ensemble des pompes s-s E","PPE","Pompes ",null,null,null,"2013-10-10"]
["PPE_ENS_W0CHA","Ensemble des pompes chaufferie","PPE","Pompes ",null,null,null,"2007-01-11",null,null,null,null,null,"GRUNDFOS"]
["PTS_001_C016","Porte de garage automatique","PTS","Barrières levante",null,null,null,"2013-10-10"]
["PTS_001_E001","Porte de garage automatique","PTS","Barrières levante",null,null,null,"2013-10-10"]
["PTS_002_B017-2","Porte sectionnelle motorisée","PTS","Barrières levante",null,null,null,"2013-10-10"]
["PTS_002_E002","Porte de garage automatique","PTS","Barrières levante",null,null,null,"2013-10-10"]
["PTS_003_B020-1","Porte sectionnelle motorisée","PTS","Barrières levante",null,null,null,"2013-10-10"]
["PTS_003_E003","Porte de garage automatique","PTS","Barrières levante",null,null,null,"2013-10-10"]
["PTS_004_B023","Porte sectionnelle motorisée","PTS","Barrières levante",null,null,null,"2013-10-10"]
["PTS_004_E004","Porte de garage automatique","PTS","Barrières levante",null,null,null,"2013-10-10"]
["PTS_005_E005","Porte de garage automatique","PTS","Barrières levante",null,null,null,"2013-10-10"]
["PTS_006_E006","Porte de garage automatique","PTS","Barrières levante",null,null,null,"2013-10-10"]
["PTS_007_E007","Porte de garage automatique","PTS","Barrières levante",null,null,null,"2013-10-10"]
["PTS_008_E008","Porte de garage automatique","PTS","Barrières levante",null,null,null,"2013-10-10"]
["PTS_009_E009","Porte de garage automatique","PTS","Barrières levante",null,null,null,"2013-10-10"]
["PTS_010_E010","Porte de garage automatique","PTS","Barrières levante",null,null,null,"2013-10-10"]
["PTS_011_E011","Porte de garage automatique","PTS","Barrières levante",null,null,null,"2013-10-10"]
["PTS_012_E012","Porte de garage automatique","PTS","Barrières levante",null,null,null,"2013-10-10"]
["PTS_ENS_E0XX","Ensemble portes de garage automatique E","PTS","Barrières levante",null,null,null,"2013-10-10"]
["PTS_ENS_XXXX","Ensemble portes automatiques","PTS","Barrières levante",null,null,null,"2013-10-10"]
["RAD_ENS_AXXX","Radiateur A","RAD","Radiateurs",null,null,null,"2013-10-10"]
["RAD_ENS_BXXX","Radiateur B","RAD","Radiateurs",null,null,null,"2013-10-10"]
["RAD_ENS_CXXX","Radiateur C","RAD","Radiateurs",null,null,null,"2013-10-10"]
["RAD_ENS_DXXX","Radiateur D","RAD","Radiateurs",null,null,null,"2013-10-10"]
["RAD_ENS_EXXX","Radiateur E","RAD","Radiateurs",null,null,null,"2013-10-10"]
["RAI_ENS_W0XX","Réseaux d'assainissement","RAI","Réseaux d'assainissement",null,null,null,"2013-10-10"]
["RDE_001_XXXX","Ronde technique EISE","RDE","Ronde technique",null,null,null,"2013-10-10"]
["RDE_002_XXXX","Ronde technique RELO","RDE","Ronde technique",null,null,null,"2013-10-10"]
["RDS_ENS_AXXX","Revêtements sols et murs A","RDS","Revêtements sols et murs",null,null,null,"2013-10-10"]
["RDS_ENS_BXXX","Revêtements sols et murs B","RDS","Revêtements sols et murs",null,null,null,"2013-10-10"]
["RDS_ENS_CXXX","Revêtements sols et murs C","RDS","Revêtements sols et murs",null,null,null,"2013-10-10"]
["RDS_ENS_DXXX","Revêtements sols et murs D","RDS","Revêtements sols et murs",null,null,null,"2013-10-10"]
["RDS_ENS_EXXX","Revêtements sols et murs E","RDS","Revêtements sols et murs",null,null,null,"2013-10-10"]
["REE_ENS_W0XX","Raccordement au réseau collectif","REE","Raccordement réseau collectif",null,null,null,"2013-10-10"]
["REP_ENS_W0XX","Réseaux collecteurs EP","REP","Réseaux collecteurs EP",null,null,null,"2013-10-10"]
["RET_ENS_W0XX","Réseaux en galerie et caniveaux","RET","Réseaux en galerie / caniveaux",null,null,null,"2013-10-10"]
["REV_ENS_AXXX","Réseau de distribution A","REV","Réseaux de distribution",null,null,null,"2013-10-10"]
["REV_ENS_BXXX","Réseau de distribution B","REV","Réseaux de distribution",null,null,null,"2013-10-10"]
["REV_ENS_CXXX","Réseau de distribution C","REV","Réseaux de distribution",null,null,null,"2013-10-10"]
["REV_ENS_DXXX","Réseau de distribution D","REV","Réseaux de distribution",null,null,null,"2013-10-10"]
["REV_ENS_EXXX","Réseau de distribution E","REV","Réseaux de distribution",null,null,null,"2013-10-10"]
["RFA_001_AXXX","Revêtement de façade A","RFA","Revêtements de façade",null,null,null,"2013-10-10"]
["RFA_001_BXXX","Revêtement de façade B","RFA","Revêtements de façade",null,null,null,"2013-10-10"]
["RFA_001_CXXX","Revêtement de façade C","RFA","Revêtements de façade",null,null,null,"2013-10-10"]
["RFA_001_DXXX","Revêtement de façade D","RFA","Revêtements de façade",null,null,null,"2013-10-10"]
["RFA_001_EXXX","Revêtement de façade E","RFA","Revêtements de façade",null,null,null,"2013-10-10"]
["RIN_ENS_XXXX","VDI / Equipement informatique","RIN","Equipement informatique",null,null,null,"2013-10-10"]
["SAE_001_C140","Marmite et sauteuse électrique","SAE","Marmite et sauteuse électrique",null,null,null,"2013-10-10"]
["SAN_ENS_AXXX","Sanitaire A","SAN","Sanitaires",null,null,null,"2013-10-10"]
["SAN_ENS_BXXX","Sanitaire B","SAN","Sanitaires",null,null,null,"2013-10-10"]
["SAN_ENS_CXXX","Sanitaire C","SAN","Sanitaires",null,null,null,"2013-10-10"]
["SAN_ENS_DXXX","Sanitaire D","SAN","Sanitaires",null,null,null,"2013-10-10"]
["SAN_ENS_EXXX","Sanitaire E","SAN","Sanitaires",null,null,null,"2013-10-10"]
["SIG_ENS_AXXX","Signalétique A","SIG","Signalétique ",null,null,null,"2013-10-10"]
["SIG_ENS_BXXX","Signalétique B","SIG","Signalétique ",null,null,null,"2013-10-10"]
["SIG_ENS_CXXX","Signalétique C","SIG","Signalétique ",null,null,null,"2013-10-10"]
["SIG_ENS_DXXX","Signalétique D","SIG","Signalétique ",null,null,null,"2013-10-10"]
["SIG_ENS_W0XX","Signalétique extérieur","SIG","Signalétique ",null,null,null,"2013-10-10"]
["SOL_001_E0CHA","Préparateur EC solaire","SOL","Préparateur EC solaire",null,null,null,"2013-10-10"]
["SSI_ENS_A001","Système de sécurité incendie","SSI","Système de sécurité incendie",null,null,null,"2013-10-10"]
["SUR_001_W0CHA","Surpresseur","SUR","Surpresseur",null,null,null,"2007-01-11",null,null,null,null,null,"GRUNDFOS","GTH-60H"]
["TCF_001_A105","trappes désenfumage","TCF","Trappes de désenfumage",null,null,null,"2013-10-10"]
["TCF_002_A144","trappes désenfumage","TCF","Trappes de désenfumage",null,null,null,"2013-10-10"]
["TCF_003_A150","trappes désenfumage","TCF","Trappes de désenfumage",null,null,null,"2013-10-10"]
["TCF_004_A164","trappes désenfumage","TCF","Trappes de désenfumage",null,null,null,"2013-10-10"]
["TCF_005_A204","trappes désenfumage","TCF","Trappes de désenfumage",null,null,null,"2013-10-10"]
["TCF_006_A227","trappes désenfumage","TCF","Trappes de désenfumage",null,null,null,"2013-10-10"]
["TCF_007_A233","trappes désenfumage","TCF","Trappes de désenfumage",null,null,null,"2013-10-10"]
["TCF_008_A246","trappes désenfumage","TCF","Trappes de désenfumage",null,null,null,"2013-10-10"]
["TCF_009_B101","trappes désenfumage","TCF","Trappes de désenfumage",null,null,null,"2013-10-10"]
["TCF_010_B116","trappes désenfumage","TCF","Trappes de désenfumage",null,null,null,"2013-10-10"]
["TCF_011_B210","trappes désenfumage","TCF","Trappes de désenfumage",null,null,null,"2013-10-10"]
["TCF_ENS_AXXX","Ensemble des trappes désenfumage A","TCF","Trappes de désenfumage",null,null,null,"2013-10-10"]
["TCF_ENS_BXXX","Ensemble des trappes désenfumage B","TCF","Trappes de désenfumage",null,null,null,"2013-10-10"]
["TDV_001_A186","TD régie","TDV","Tableau divisionnaire",null,null,null,"2013-10-10"]
["TDV_100_C160","TD Cuisine","TDV","Tableau divisionnaire",null,null,null,"2013-10-10"]
["TDV_101_B0C001","TD 101","TDV","Tableau divisionnaire",null,null,null,"2013-10-10"]
["TDV_103_C017","TD 103","TDV","Tableau divisionnaire",null,null,null,"2013-10-10"]
["TDV_111_B1C001","TD 111","TDV","Tableau divisionnaire",null,null,null,"2013-10-10"]
["TDV_121_B2C008","TD 121","TDV","Tableau divisionnaire",null,null,null,"2013-10-10"]
["TDV_122_B2C006","TD 122","TDV","Tableau divisionnaire",null,null,null,"2013-10-10"]
["TDV_123_C2C005","TD 123","TDV","Tableau divisionnaire",null,null,null,"2013-10-10"]
["TDV_201_A086","TD 201","TDV","Tableau divisionnaire",null,null,null,"2013-10-10"]
["TDV_202_A0C011","TD 202","TDV","Tableau divisionnaire",null,null,null,"2013-10-10"]
["TDV_203_A0C005","TD 203","TDV","Tableau divisionnaire",null,null,null,"2013-10-10"]
["TDV_211_A1C016","TD 211","TDV","Tableau divisionnaire",null,null,null,"2013-10-10"]
["TDV_212_A1C012","TD 212","TDV","Tableau divisionnaire",null,null,null,"2013-10-10"]
["TDV_213_A1C005","TD 213","TDV","Tableau divisionnaire",null,null,null,"2013-10-10"]
["TDV_221_A2C018","TD 221","TDV","Tableau divisionnaire",null,null,null,"2013-10-10"]
["TDV_222_A2C012","TD 222","TDV","Tableau divisionnaire",null,null,null,"2013-10-10"]
["TDV_223_A2C005","TD 223","TDV","Tableau divisionnaire",null,null,null,"2013-10-10"]
["TDV_ENS_XXXX","Ensemble des TD","TDV","Tableau divisionnaire",null,null,null,"2013-10-10"]
["TER_001_A301","Toiture-terrasse A","TER","Toiture-terrasse",null,null,null,"2013-10-10"]
["TER_001_B301","Toiture-terrasse B","TER","Toiture-terrasse",null,null,null,"2013-10-10"]
["TER_001_C301","Toiture-terrasse C","TER","Toiture-terrasse",null,null,null,"2013-10-10"]
["TER_001_D101","Toiture-terrasse D","TER","Toiture-terrasse",null,null,null,"2013-10-10"]
["TER_001_E201","Toiture-terrasse E","TER","Toiture-terrasse",null,null,null,"2013-10-10"]
["TGT_001_C003","TGBT n°1 (internat) ","TGT","TGBT",null,null,null,"2013-10-10"]
["TGT_002_A051","TGBT n°2 (enseignement)","TGT","TGBT",null,null,null,"2013-10-10"]
["TGT_004_B021","TGBT atelier","TGT","TGBT",null,null,null,"2013-10-10"]
["TGT_005_D0C002","TGBT gymnase","TGT","TGBT",null,null,null,"2013-10-10"]
["TGT_ENS_XXXX","Ensemble TGBT","TGT","TGBT",null,null,null,"2013-10-10"]
["TLV_ENS_XXXX","Télévision","TLV","Signal TV",null,null,null,"2013-10-10"]
["TRE_ENS_W0CHA","Traitement d'eau chaufferie","TRE","Traitement d'eau",null,null,null,"2013-10-10"]
["TRF_001_C001","Transformateur poste internat","TRF","Transformateur",null,null,null,"2013-10-10"]
["TRF_002_A052","Transformateur poste enseignement","TRF","Transformateur",null,null,null,"2013-10-10"]
["TRF_ENS_XXXX","Ensemble des transformateurs","TRF","Transformateur",null,null,null,"2013-10-10"]
["TSA_001_A102","TS A102","TSA","Tableau de salle",null,null,null,"2013-10-10"]
["TSA_002_A110","TS A110","TSA","Tableau de salle",null,null,null,"2013-10-10"]
["TSA_003_A129","TS A129","TSA","Tableau de salle",null,null,null,"2013-10-10"]
["TSA_004_A135","TS A135","TSA","Tableau de salle",null,null,null,"2013-10-10"]
["TSA_005_A139","TS A139","TSA","Tableau de salle",null,null,null,"2013-10-10"]
["TSA_006_A202","TS A202","TSA","Tableau de salle",null,null,null,"2013-10-10"]
["TSA_007_A203","TS A203","TSA","Tableau de salle",null,null,null,"2013-10-10"]
["TSA_008_A211","TS A211","TSA","Tableau de salle",null,null,null,"2013-10-10"]
["TSA_009_A210","TS A210","TSA","Tableau de salle",null,null,null,"2013-10-10"]
["TSA_010_A217-2","TS A217-2","TSA","Tableau de salle",null,null,null,"2013-10-10"]
["TSA_011_A221-2","TS A221-2","TSA","Tableau de salle",null,null,null,"2013-10-10"]
["TSA_012_A223-2","TS A223-2","TSA","Tableau de salle",null,null,null,"2013-10-10"]
["TSA_013_A216","TS A216","TSA","Tableau de salle",null,null,null,"2013-10-10"]
["TSA_014_A222","TS A222","TSA","Tableau de salle",null,null,null,"2013-10-10"]
["TSA_015_A223","TS A223","TSA","Tableau de salle",null,null,null,"2013-10-10"]
["TSA_016_A226","TS A226","TSA","Tableau de salle",null,null,null,"2013-10-10"]
["TSA_017_A089-1","TS A089-1","TSA","Tableau de salle",null,null,null,"2013-10-10"]
["TSA_018_B001","TS B001","TSA","Tableau de salle",null,null,null,"2013-10-10"]
["TSA_019_B002","TS B002","TSA","Tableau de salle",null,null,null,"2013-10-10"]
["TSA_020_B003","TS B003","TSA","Tableau de salle",null,null,null,"2013-10-10"]
["TSA_021_B004","TS B004","TSA","Tableau de salle",null,null,null,"2013-10-10"]
["TSA_022_B006-1","TS B006-1","TSA","Tableau de salle",null,null,null,"2013-10-10"]
["TSA_023_B006-2","TS B006-2","TSA","Tableau de salle",null,null,null,"2013-10-10"]
["TSA_024_B006-3","TS B006-3","TSA","Tableau de salle",null,null,null,"2013-10-10"]
["TSA_025_B011-1","TS B011-1","TSA","Tableau de salle",null,null,null,"2013-10-10"]
["TSA_026_B011-2","TS B011-2","TSA","Tableau de salle",null,null,null,"2013-10-10"]
["TSA_027_B023","TS B023","TSA","Tableau de salle",null,null,null,"2013-10-10"]
["TSA_028_B017-2","TS B017-2","TSA","Tableau de salle",null,null,null,"2013-10-10"]
["TSA_029_B024","TS B024","TSA","Tableau de salle",null,null,null,"2013-10-10"]
["TSA_030_B114","TS B114","TSA","Tableau de salle",null,null,null,"2013-10-10"]
["TSA_031_B115","TS B115","TSA","Tableau de salle",null,null,null,"2013-10-10"]
["TSA_032_B120","TS B120","TSA","Tableau de salle",null,null,null,"2013-10-10"]
["TSA_033_B208","TS B208","TSA","Tableau de salle",null,null,null,"2013-10-10"]
["TSA_034_B211","TS B211","TSA","Tableau de salle",null,null,null,"2013-10-10"]
["TSA_035_B216","TS B216","TSA","Tableau de salle",null,null,null,"2013-10-10"]
["TSA_036_B217","TS B217","TSA","Tableau de salle",null,null,null,"2013-10-10"]
["TSA_037_B218","TS B218","TSA","Tableau de salle",null,null,null,"2013-10-10"]
["TSA_038_B201","TS B201","TSA","Tableau de salle",null,null,null,"2013-10-10"]
["TSA_039_B202","TS B202","TSA","Tableau de salle",null,null,null,"2013-10-10"]
["TSA_040_B204","TS B204","TSA","Tableau de salle",null,null,null,"2013-10-10"]
["TSA_041_B206","TS B206","TSA","Tableau de salle",null,null,null,"2013-10-10"]
["TSA_042_B219","TS B219","TSA","Tableau de salle",null,null,null,"2013-10-10"]
["TSA_043_B221","TS B221","TSA","Tableau de salle",null,null,null,"2013-10-10"]
["TSA_044_B223","TS B223","TSA","Tableau de salle",null,null,null,"2013-10-10"]
["TSA_045_B205","TS B205","TSA","Tableau de salle",null,null,null,"2013-10-10"]
["TSA_046_C007","TS C007","TSA","Tableau de salle",null,null,null,"2013-10-10"]
["TSA_047_C008","TS C008","TSA","Tableau de salle",null,null,null,"2013-10-10"]
["TSA_048_A136","TS A136","TSA","Tableau de salle",null,null,null,"2013-10-10"]
["TSA_049_A217","TS A217","TSA","Tableau de salle",null,null,null,"2013-10-10"]
["TSA_050_A221","TS A221","TSA","Tableau de salle",null,null,null,"2013-10-10"]
["TSA_ENS_XXXX","Ensemble des TS","TSA","Tableau de salle",null,null,null,"2013-10-10"]
["TSP_001_W0XX","Terrain de sport","TSP","Terrain de sport",null,null,null,"2013-10-10"]
["VAE_001_C011","Vase d'expansion solaire ","VAE","Vase d'expansion",null,null,null,"2013-10-10",null,null,null,null,null,null,null,"400 L"]
["VAE_001_E0CHA","Vase d'expansion","VAE","Vase d'expansion",null,null,null,"2013-10-10",null,null,null,null,null,null,null,"105 L"]
["VAE_002_C018","Vase d'expansion solaire (ECS internat)","VAE","Vase d'expansion",null,null,null,"2013-10-10",null,null,null,null,null,null,null,"200 L"]
["VAE_002_W0CHA","Vase d'expansion","VAE","Vase d'expansion",null,null,null,"2007-01-11",null,null,null,null,null,"FLAMCO","FLEXCON","K 2000L"]
["VAE_003_C018","Vase d'expansion solaire (Chauffage internat)","VAE","Vase d'expansion",null,null,null,"2013-10-10",null,null,null,null,null,null,null,"200 L"]
["VAE_ENS_C0XX","Ensemble vases d'expansions solaire","VAE","Vase d'expansion",null,null,null,"2013-10-10"]
["VED_001_B301","Tourelle de désenfumage","VED","Ventilateur de désenfumage",null,null,null,"2013-10-10",null,null,null,null,null,"Ald?s","Velone","3,2 - 4T","0,55 kW","1200 m3/h"]
["VED_002_A301","Tourelle de désenfumage","VED","Ventilateur de désenfumage",null,null,null,"2013-10-10",null,null,null,null,null,"Ald?s","Velone","3,2 - 4T","0,55 kW","1200 m3/h"]
["VED_003_A301","Tourelle de désenfumage","VED","Ventilateur de désenfumage",null,null,null,"2013-10-10",null,null,null,null,null,"Ald?s","Velone","3,2 - 4T","0,55 kW","1200 m3/h"]
["VED_004_A301","Tourelle de désenfumage","VED","Ventilateur de désenfumage",null,null,null,"2013-10-10",null,null,null,null,null,"Ald?s","Velone","3,2 - 4T","0,55 kW","1200 m3/h"]
["VED_005_A301","Tourelle de désenfumage","VED","Ventilateur de désenfumage",null,null,null,"2013-10-10",null,null,null,null,null,"Ald?s","Velone","3,2 - 4T","0,55 kW","1200 m3/h"]
["VED_006_B301","Caisson de désenfumage","VED","Ventilateur de désenfumage",null,null,null,"2013-10-10",null,null,null,null,null,"Ald?s","Cyclone F400","225B","1,1 kW","1200 m3/h"]
["VED_007_B301","Caisson de désenfumage","VED","Ventilateur de désenfumage",null,null,null,"2013-10-10",null,null,null,null,null,"Aldes","Cyclone F400","225B","1,1 kW","1200 m3/h"]
["VED_ENS_XXXX","Ensemble Tourelle désenfu.","VED","Ventilateur de désenfumage",null,null,null,"2013-10-10",null,null,null,null,null,"Ald?s"]
["VIF_ENS_AXXX","Verrières et façades vitrées A","VIF","Verrières et façades vitrées",null,null,null,"2013-10-10"]
["VIF_ENS_BXXX","Verrières et façades vitrées B","VIF","Verrières et façades vitrées",null,null,null,"2013-10-10"]
["VIF_ENS_CXXX","Verrières et façades vitrées C","VIF","Verrières et façades vitrées",null,null,null,"2013-10-10"]
["VIF_ENS_DXXX","Verrières et façades vitrées D","VIF","Verrières et façades vitrées",null,null,null,"2013-10-10"]
["VIT_ENS_AXXX","Vitrerie intérieure A","VIT","Vitrerie intérieure",null,null,null,"2013-10-10"]
["VIT_ENS_BXXX","Vitrerie intérieure B","VIT","Vitrerie intérieure",null,null,null,"2013-10-10"]
["VIT_ENS_CXXX","Vitrerie intérieure C","VIT","Vitrerie intérieure",null,null,null,"2013-10-10"]
["VIT_ENS_DXXX","Vitrerie intérieure D","VIT","Vitrerie intérieure",null,null,null,"2013-10-10"]
["VMC_001_A187","Ventilateur VMC Sanitaires","VMC","VMC",null,null,null,"2013-10-10",null,null,null,null,null,"Aldes","C.VEC","1500 R","187 W","945 m3/h"]
["VMC_001_B301","Ventilateur VMC Sanitaires","VMC","VMC",null,null,null,"2013-10-10",null,null,null,null,null,"Aldes","C.VEC","1500 R","187 W","705 m3/h"]
["VMC_001_C2CTA","Ventilateur VMC Sanitaires","VMC","VMC",null,null,null,"2013-10-10",null,null,null,null,null,"Aldes","C.VEC","1500 R","187 W","765 m3/h"]
["VMC_002_A301","Ventilateur VMC Sanitaires","VMC","VMC",null,null,null,"2013-10-10",null,null,null,null,null,"Ald?s","C.VEC","1500 R","187 W","750 m3/h"]
["VMC_002_B301","Ventilateur VMC Sanitaires","VMC","VMC",null,null,null,"2013-10-10",null,null,null,null,null,"Aldes","C.VEC","1500 R","187 W","705 m3/h"]
["VMC_002_C301","Ventilateur VMC Internat","VMC","VMC",null,null,null,"2013-10-10",null,null,null,null,null,"Aldes","C.VEC","1500 R","187 W","690 m3/h"]
["VMC_003_A301","Ventilateur VMC Sanitaires","VMC","VMC",null,null,null,"2013-10-10",null,null,null,null,null,"Ald?s","Mini-VEC",160,"125 W","270 m3/h"]
["VMC_003_C301","Ventilateur VMC Internat","VMC","VMC",null,null,null,"2013-10-10",null,null,null,null,null,"Aldes","C.VEC","750 R","40 W","480 m3/h"]
["VMC_004_A301","Ventilateur VMC Sanitaires","VMC","VMC",null,null,null,"2013-10-10",null,null,null,null,null,"Ald?s","C.VEC","1500 R","187 W","810 m3/h"]
["VMC_004_C301","Ventilateur VMC Internat","VMC","VMC",null,null,null,"2013-10-10",null,null,null,null,null,"Aldes","C.VEC","1500 R","187 W","1185 m3/h"]
["VMC_005_A301","Ventilateur VMC Sanitaires","VMC","VMC",null,null,null,"2013-10-10",null,null,null,null,null,"Ald?s","Mini-VEC",160,"125 W","150 m3/h"]
["VMC_006_A301","Ventilateur VMC Sanitaires","VMC","VMC",null,null,null,"2013-10-10",null,null,null,null,null,"Ald?s","Mini-VEC",180,"125 W","345 m3/h"]
["VMC_ENS_XXXX","Ensemble des VMC","VMC","VMC",null,null,null,"2013-10-10",null,null,null,null,null,"Ald?s"]
["VOI_ENS_W0XX","Voirie","VOI","Voirie",null,null,null,"2013-10-10"]
["VRO_ENS_AXXX","Volets roulants électriques A","VRO","Volets roulants électriques",null,null,null,"2013-10-10"]
["VRO_ENS_BXXX","Volets roulants électriques B","VRO","Volets roulants électriques",null,null,null,"2013-10-10"]
["VRO_ENS_CXXX","Volets roulants électriques C","VRO","Volets roulants électriques",null,null,null,"2013-10-10"]
["VRO_ENS_DXXX","Volets roulants électriques D","VRO","Volets roulants électriques",null,null,null,"2013-10-10"]

{"sheet":"Donné responsable","index":2,"n_rows":98,"n_cols":9,"rows_kept":98,"cut":false,"hidden":false,"merged":[]}
["N°","NOM","SITE","FONCTION","FIXE","PORTABLE","TELECOPIE","MAIL","PHOTO"]
[1,"AVON Fabien","VELIZY-VILLACOUBLAY","Juriste",null,617423686,null,"Fabien.AVON@eiffage.com"]
[{"$f":"A2+1","v":2},"BARTOLI Arnaud","VELIZY-VILLACOUBLAY","Responsable opérationnel Adjoint - Secteur Nord","01 49 72 20 90",609181790,null,"Arnaud.BARTOLI@eiffage.com"]
[{"$f":"A3+1","v":3},"BAYLE Vincent","VELIZY-VILLACOUBLAY","Référent CFA/CFO - Service Méthodes","01 71 59 12 09","06 34 23 01 84",null,"Vincent.BAYLE@eiffage.com"]
[4,"BIOT Florian","GREEN ER","Responsable de site","04 76 43 87 12","06 46 41 28 91",null,"florian,biot@eiffage,com"]
[5,"BONNINGUES Elodie","VELIZY-VILLACOUBLAY","Responsable Qualité Sécurité Environnement - Service Performance","01 71 59 12 00","06 28 71 31 34",null,"elodie.BONNINGUES@eiffage.com"]
[6,"BOSCHET Eric","LA GRANDE ARCHE","Responsable Site",null,"06 18 30 65 77",null,"Eric.BOSCHET@eiffage.com"]
[7,"BOUKHARI Thomas","CHAL","Adjoint Responsable Travaux","04 50 82 32 02",null,null,"travaux.chal.eiffage@eiffage.com"]
[8,"BREDECHE Cédric","VELIZY-VILLACOUBLAY","Référent CVC - Service Méthodes ","01 71 59 12 08","06 24 48 08 78",null,"Cedric.BREDECHE@eiffage.com"]
[9,"BRIOLAN Audrey","CG 93 - LE BLANC MESNIL","Technicien",null,"06 15 78 71 43",null,"audrey.briolan@eiffage.com"]
[10,"CAILLIAU Christophe","ROANNE","Technicien",477239744,null,"04 77 23 97 47 ","emep4.roanne@eiffage.com"]
[11,"CANEVET Bruno","VELIZY-VILLACOUBLAY","Responsable Opérationnel Pôle Pénitentiaire & Régions Sud","01 71 59 12 03",620002988,null,"Bruno.CANEVET@eiffage.com"]
[12,"CARVENNEC Christophe","BMT HCA RENNES","Responsable de site","02 99 33 07 62",615757021,null,"Christophe.CARVENNEC@eiffage.com"]
[13,"CAVAILLE Philippe","BEZIERS","Technicien","04 67 80 78 97",null,null,"emep4.beziers@eiffage.com"]
[14,"CELMA Jérôme","CORBAS","Responsable Opérationnel Adjoint - Secteur Sud","04 72 51 51 19",622584809,null,"Jerome.CELMA@eiffage.com"]
[15,"CHAMEY Alain","CHAL","Responsable CFO","04 50 82 33 00","06 26 22 11 96",null,"Alain.CHAMAY@eiffage.com"]
[16,"CHATTI Abderrazac","ROANNE","Technicien","04 77 23 97 44",null,"04 77 23 97 47 ","emep4.roanne@eiffage.com"]
[17,"CHAUMIER Thomas","VELIZY-VILLACOUBLAY","Responsable Patrimoine",559814756,627653132,null,"Thomas.CHAUMIER@eiffage.com"]
[18,"COLLIN Gilles","BEZIERS","Responsable de site","04 67 80 78 97","06 07 70 46 68",null,"Gilles.COLLIN@eiffage.com"]
[19,"COMBEBIAS Nicolas","CG 93 - NOISY LE GRAND","Apprenti",null,"06 28 01 82 92"]
[20,"CORNILLEAU Régis","CSN","Technicien","02 72 27 87 90/92"]
[21,"CROTTET Olivier","GREEN ER","Technicien CVC"]
[22,"DAREL Dimitri","VELIZY-VILLACOUBLAY","Responsable Travaux et GER ","01 71 59 12 06 ","06 27 10 39 18",null,"dimitri,darel@eiffage,com"]
[23,"DE ARAUJO DE SOUSA André","CORBAS","Responsable de site Adjoint","04 72 51 51 19","06 85 60 98 50",null,"Andre.desousa@eiffage.com"]
[24,"DEBOMY Laurie","VELIZY-VILLACOUBLAY","Secrétaire Pôle Performances et Services Centraux","01 71 59 11 99 ",null,null,"Laurie.DEBOMY@eiffage.com"]
[25,"DEBRABANT Aurélien","GREEN ER","Technicien CFO",null,"06 18 82 29 71"]
[26,"DEGLOS Patrick","VELIZY-VILLACOUBLAY","Comptable","01 71 59 11 98",null,null,"patrick.deglos.ext@eiffage.com"]
[27,"DE GUINAUMONT Olivier","VELIZY-VILLACOUBLAY","Directeur EIFFAGE SERVICES","01 71 59 11 81",673483918,null,"Olivier.DEGUINAUMONT@a65-alienor.fr"]
[28,"DELAHAYE Antoine","VELIZY-VILLACOUBLAY","Référent Energies - Service Méthodes","01 71 59 12 07",626535134,null,"Antoine.DELAHAYE@eiffage.com"]
[29,"DELAUNAY Jérémie","DGGN","Responsable de site","01 84 22 00 52 ",777848819,null,"Jeremie.DELAUNAY@eiffage.com"]
[30,"DELHAYE Pascal","BEZIERS","Technicien BEZIERS","04 67 80 78 97",null,null,"emep4.beziers@eiffage.com"]
[31,"DEMARET Louis","LILLE","Technicien (arrivée : 01/02/2016)",null,"06 13 57 95 03",null,"louis.demaret@eiffage.com"]
[32,"DICK Jordan","CG 93 - BONDY","Apprenti (fin : 30/06/2016)",null,"06 16 30 03 29"]
[33,"DOORNAERT Dominique","CHAL","Responsable CVC PB","04 50 82  33 03","06 18 71 81 60",null,"dominique.doornaert@eiffage.com"]
[34,"DORET Tony","BEZIERS","Technicien","04 67 80 78 97",null,null,"emep4.beziers@eiffage.com"]
[35,"DUBUISSON Nicolas","LILLE","Responsable de site",null,634694940,null,"Nicolas.DUBUISSON@eiffage.com"]
[36,"DUSSEAU Thierry","VELIZY-VILLACOUBLAY","Responsable Méthodes","01 71 59 12 14","06 22 61 25 48",null,"Thierry.DUSSEAU@eiffage.com"]
[37,"FAILLARD Arnaud","DGGN","Technicien","01 84 22 00 52",609354647,null,"Arnaud.FAILLARD@eiffage.com"]
[38,"FAVRE Nicolas","CHAL","Technicien ","04 50 82 32 91",null,null,"Nicolas.FAVRE@eiffage.com"]
[39,"FERNANDES André","CORBAS","Technicien","04 52 51 51 19",null,null,"emep4.corbas@eiffage.com"]
[40,"FLEURENTIN Franck","NANCY-MAXEVILLE","Technicien","03 83 54 62 30",null,null,"emep4.nancy@eiffage.com"]
[41,"FLEURENTIN Jérémy","NANCY-MAXEVILLE","Apprenti","03 83 54 62 30",null,null,"emep4.nancy@eiffage.com"]
[42,"FOREST Rachel","VELIZY-VILLACOUBLAY","Secrétaire d'exploitation secteur Sud","01 71 59 11 92 ",null,null,"rachel.forest@eiffage.com"]
[43,"FRANCO David","CG 93 - SAINT DENIS - AUBERVILLIERS","Responsable de site Adjoint 2",null,616856063,null,"David.FRANCO@eiffage.com"]
[44,"GALLAIS Nathalie","VELIZY-VILLACOUBLAY","Comptable","01 71 59 12 47",null,null,"nathalie.gallais@eiffage.com"]
[45,"GARGARI Hakima","VELIZY-VILLACOUBLAY","Comptable","01 71 59 11 99",null,null,"Hakima.GARGARI@eiffage.com"]
[46,"GAUCHE Aurélien","JARNY","Responsable de site",null,622904583,null,"Aurelien.GAUCHE@eiffage.com"]
[47,"GAULIER Anthony","CSN","Responsable de site","02 72 27 87 90/92",628701914,null,"Anthony.GAULIER@eiffage.com"]
[48,"GENEST Franck","VELIZY-VILLACOUBLAY","Responsable service Méthode et Performances","01 71 59 12 04",614590984,null,"Franck.GENEST@eiffage.com"]
[49,"GIARD Charles","VELIZY-VILLACOUBLAY","Service Méthodes","01 71 59 12 13",null,null,"charles.giard@eiffage.com"]
[50,"GILBERTAT Yves","CORBAS","Technicien",472515121,null,null,"emep4.corbas@eiffage.com"]
[51,"GROMELLE Emmanuel","CHAL","Responsable de site",450823291,"06 31 40 80 57",null,"emmanuel.gromelle@eiffage.com"]
[52,"GRUDÉ Patrick","VELIZY-VILLACOUBLAY","DAF","01 71 59 11 88",634331543,null,"Patrick.GRUDE@eiffage.com"]
[53,"GUILLET LHERMITE Laurent","CHAL","Technicien CVC","04 50 82 32 91"]
[54,"HAUSS Laurent","NANCY-MAXEVILLE","Technicien","03 83 54 62 30",null,null,"emep4.nancy@eiffage.com"]
[55,"JANIESWKI Dimitri","NANCY-MAXEVILLE","Technicien","03 83 54 62 30",null,null,"emep4.nancy@eiffage.com"]
[56,"JOFFROY Benoît","CHAL","Technicien","04 50 82 32 91"]
[57,"JULIEN Michel","VELIZY-VILLACOUBLAY","Service Méthodes","01 71 59 12 12","06 27 00 56 08",null,"michel.julien@eiffage.com"]
[58,"LECOANET Benjamin","NANCY-MAXEVILLE","Technicien","03 83 54 62 30",null,null,"emep4.nancy@eiffage.com"]
[59,"LE GLEUT Cédric","ROANNE","Technicien","04 77 23 97 44 / 48",null,"04 77 23 97 47 ","emep4.roanne@eiffage.com"]
[60,"LEROY Caroline","CHAL","Responsable Travaux","04 50 82 32 96",null,"06 28 64 09 15","caroline,leroy@eiffage,com"]
[61,"LUCAS Mikaël","VELIZY-VILLACOUBLAY","Responsable Secteur Nord","01 71 59 12 05","06 28 22 25 27",null,"Mikael.LUCAS@eiffage.com"]
[62,"MADARBACCUS Rayane","CG 93 - LE BLANC MESNIL","Apprenti",null,"06 52 29 16 43"]
[63,"MAZZACHERA Guy","CORBAS","Technicien",472515121,null,null,"emep4.corbas@eiffage.com"]
[64,"MERLE Sylvain","ROANNE","Technicien","04 77 23 97 44 / 48",null,"04 77 23 97 47 ","emep4.roanne@eiffage.com"]
[65,"MESSAOUDI Abderahmane","BEZIERS","Technicien","04 67 80 78 97"]
[66,"MEXIQUE Jean-Michel","NANCY-MAXEVILLE","Responsable de site Adjoint  ",383546231,622584923,null,"Jean-Michel.MEXIQUE@eiffage.com"]
[{"$f":"A67+1","v":67},"MICHNIEWICZ Jérôme","NANCY-MAXEVILLE","Technicien",383546231,null,null,"emep4.nancy@eiffage.com"]
[68,"MINIER Aurélien","VELIZY-VILLACOUBLAY","Etudes Maintenance P.P.P","01 71 59 11 93","06 34 24 07 14",null,"aurelien.minier@eiffage.com"]
[69,"MOHAD Hacine","CHSF","Technicien","01 64 98 20 79"]
[70,"MOREILLON Johann","CG 93 - CLICHY SOUS BOIS","Technicien",null,"06 16 85 60 49",null,"johann.moreillon@eiffage.com"]
[71,"MULOT David","NANCY-MAXEVILLE","Responsable de site",383546230,"06 46 63 60 93",null,"david.mulot@eiffage.com"]
[72,"NATIVEL Thierry","CORBAS","Apprenti (13/07/2017)","04 52 51 51 19",null,null,"emep4.corbas@eiffage.com"]
[73,"OCTAVE Maryse","VELIZY-VILLACOUBLAY","Secrétaire d'exploitation Secteur Nord","01 71 59 11 97",null,null,"Maryse.OCTAVE@eiffage.com"]
[74,"PAJADON Régis","VELIZY-VILLACOUBLAY","Directeur Exploitation","01 71 59 11 83","06 35 15 33 25",null,"Regis.PAJADON@eiffage.com"]
[75,"PELPOIR Cyrille","CG 93 ","Responsable de site","01 43 04 49 22",634121563,null,"Cyrille.PELPOIR@eiffage.com"]
[76,"PERRIER Eric","CHAL","Technicien","04 50 82 32 91"]
[77,"PETITMAIRE Philippe","CORBAS","Technicien",472515121,null,null,"emep4.corbas@eiffage.com"]
[78,"PIERRE Denis","CHAL","Technicien","04 50 82 32 91"]
[79,"PINON Olivier","VELIZY-VILLACOUBLAY","Etudes Maintenance P.P.P","01 71 59 11 94",615890082,null,"Olivier.PINON@eiffage.com"]
[80,"POUILLERIE Dominique","AIX EN PROVENCE","Responsable de site",null,"06 03 87 51 43",null,"Dominique.POUILLERIE@eiffage.com"]
[81,"RAUSCH Eric","CORBAS","Responsable de site","04 72 51 51 21","06 20 56 45 18"]
[82,"REGRAGUI Larbi","CHAL","Technicien","04 50 82 32 91",618718160,null,"Larbi.REGRAGUI@eiffage.com"]
[83,"RIBAL Christophe","VELIZY-VILLACOUBLAY","Directeur adjoint EIFFAGE SERVICES","01 71 59 11 96",627648258,null,"Christophe.RIBAL@eiffage.com"]
[84,"ROPARS Serge","CSN","Technicien",272278794]
[85,"SALLEMAND Fabien","GREEN ER","Apprenti"]
[86,"SCREVE Olivier","LILLE","Technicien (arrivée : 02/05/2016)",null,"06 26 80 13 84",null,"olivier.screve@eiffage.com"]
[87,"SEIGNOL Pascal","ROANNE","Responsable de site Adjoint",477239746,622584891,"04 77 23 97 47 ","Pascal.seignol@eiffage.com"]
[88,"SELLE Didier","ROANNE","Responsable de site","04 77 23 97 44","06 29 23 02 26","04 77 23 97 45","didier.selle@eiffage.com"]
[89,"SEROL Pascal","ROANNE","Technicien","04 77 23 97 44",null,"04 77 23 97 47 ","emep4.roanne@eiffage.com"]
[90,"MESSAOUDI Abdel","BEZIERS","Technicien","04 67 80 78 97",null,null,"emep4.beziers@eiffage.com"]
[91,"SOUBRIÉ Patrick","BEZIERS","Technicien","04 67 80 78 97",null,null,"emep4.beziers@eiffage.com"]
[92,"TABILLON Guillaume","CORBAS","Technicien","04 52 51 51 19",null,null,"emep4.corbas@eiffage.com"]
[93,"TAPO Mamadou","CG 93 - AULNAY SOUS BOIS - LE RAINCY","Responsable de site Adjoint 1",null,"06 10 56 78 56",null,"Mamadou.TAPO@eiffage.com"]
[94,"THIBAUT Gauthier","BEZIERS","Apprenti (31/08/2017)","04 67 80 78 97",null,null,"emep4.beziers@eiffage.com"]
[95,"VILLEMIN Didier","BEZIERS","Responsable de site Adjoint","04 67 80 78 97",777791708,null,"Didier.VILLEMIN@eiffage.com"]
[96,"YOKA Armel Valery","CG 93 - NOISY LE GRAND","Technicien",null,615786943,null,"Armel-Valery.YOKA@eiffage.com"]
[97,"ZAIR Madani","CHSF","Technicien","01 64 98 20 79",null,null,"Madani.ZAIR@eiffage.com"]

{"sheet":"AIDE","index":3,"n_rows":0,"n_cols":0,"rows_kept":0,"cut":false,"hidden":false,"merged":[]}

{"sheet":"TABLEAU RECAP","index":4,"n_rows":444,"n_cols":14,"rows_kept":444,"cut":false,"hidden":false,"merged":[[1,2,3,9]]}
[]
[null,null,"Tableau Récaputilatif ",null,null,null,null,null,null,null,null,2015]
[]
[]
[]
[]
["ID","EQUIPEMENT ","N°LOCAL","NOTE QUEST. \nL'EQUIPEMENT ","NOTE QUEST.\nCRITICITE","RESPONSABLE ","DATE DE L'AMDEC","DUREE DE VIE",null,null,null,"RESULTAT ETAT\nEQUIPEMENT ","RESULTAT ETAT\nCRITICITE ","LETTRE "]
[null,"Ascenseur","",2,12,"","2015-01-31","",null,null,"",{"$f":"IF(D8<=21,\"Mauvais\",IF(D8<=43,\"Usuel\",IF(D8<=64,\"Bon\")))","v":"Mauvais"},{"$f":"IF(E8<=21,\"Faible\",IF(E8<=43,\"Moyenne\",IF(E8<=64,\"Forte\")))","v":"Faible"}]
[null,"Baie Informatique","",8,4,"","2015-02-01","",null,null,"",{"$f":"IF(D9<=21,\"Mauvais\",IF(D9<=43,\"Usuel\",IF(D9<=64,\"Bon\")))","v":"Mauvais"},{"$f":"IF(E9<=21,\"Faible\",IF(E9<=43,\"Moyenne\",IF(E9<=64,\"Forte\")))","v":"Faible"}]
[null,"Ascenseur","",14,4,null,"2015-02-02",null,null,null,null,"Mauvais","Faible"]
[null,"Baie Informatique","",20,12,null,"2015-02-03",null,null,null,null,"Mauvais","Faible"]
[null,"Ascenseur","",26,20,null,"2015-02-04",null,null,null,null,"Usuel","Faible"]
[null,"Baie Informatique","",32,28,null,"2016-05-04",null,null,null,null,"Usuel","Moyenne"]
[null,"Baie Informatique","",32,28,null,"2016-05-05",null,null,null,null,"Usuel","Moyenne"]
[null,"Baie Informatique","",32,28,null,"2016-05-06",null,null,null,null,"Usuel","Moyenne"]
[null,"Baie Informatique","",32,28,null,"2016-05-07",null,null,null,null,"Usuel","Moyenne"]
[null,"Baie Informatique","",32,28,null,"2016-05-08",null,null,null,null,"Usuel","Moyenne"]
[null,"Baie Informatique","",32,28,null,"2016-05-09",null,null,null,null,"Usuel","Moyenne"]
[null,"Chargeur","",18,36,"BOSCHET Eric","","",null,null,"","Mauvais","Moyenne"]
[null,"Ballons ECS électrique","",64,21,"","","",null,null,"","Bon","Faible"]
[null,"Autocom",null,null,null,null,null,null,null,null,null,"Mauvais","Faible"]
[null,null,null,null,null,null,null,null,null,null,null,"Mauvais","Faible"]
[null,null,null,null,null,null,null,null,null,null,null,"Mauvais","Faible"]
[null,null,null,null,null,null,null,null,null,null,null,"Mauvais","Faible"]
[null,null,null,null,null,null,null,null,null,null,null,"Mauvais","Faible"]
[null,null,null,null,null,null,null,null,null,null,null,"Mauvais","Faible"]
[null,null,null,null,null,null,null,null,null,null,null,"Mauvais","Faible"]
[null,null,null,null,null,null,null,null,null,null,null,"Mauvais","Faible"]
[null,null,null,null,null,null,null,null,null,null,null,"Mauvais","Faible"]
[null,null,null,null,null,null,null,null,null,null,null,"Mauvais","Faible"]
[null,null,null,null,null,null,null,null,null,null,null,"Mauvais","Faible"]
[null,null,null,null,null,null,null,null,null,null,null,"Mauvais","Faible"]
[null,null,null,null,null,null,null,null,null,null,null,"Mauvais","Faible"]
[null,null,null,null,null,null,null,null,null,null,null,"Mauvais","Faible"]
[null,null,null,null,null,null,null,null,null,null,null,"Mauvais","Faible"]
[null,null,null,null,null,null,null,null,null,null,null,"Mauvais","Faible"]
[null,null,null,null,null,null,null,null,null,null,null,"Mauvais","Faible"]
[null,null,null,null,null,null,null,null,null,null,null,"Mauvais","Faible"]
[null,null,null,null,null,null,null,null,null,null,null,"Mauvais","Faible"]
[null,null,null,null,null,null,null,null,null,null,null,"Mauvais","Faible"]
[null,null,null,null,null,null,null,null,null,null,null,"Mauvais","Faible"]
[null,null,null,null,null,null,null,null,null,null,null,"Mauvais","Faible"]
[null,null,null,null,null,null,null,null,null,null,null,"Mauvais","Faible"]
[null,null,null,null,null,null,null,null,null,null,null,"Mauvais","Faible"]
[null,null,null,null,null,null,null,null,null,null,null,"Mauvais","Faible"]
[null,null,null,null,null,null,null,null,null,null,null,"Mauvais","Faible"]
[null,null,null,null,null,null,null,null,null,null,null,"Mauvais","Faible"]
[null,null,null,null,null,null,null,null,null,null,null,"Mauvais","Faible"]
[null,null,null,null,null,null,null,null,null,null,null,"Mauvais","Faible"]
[null,null,null,null,null,null,null,null,null,null,null,"Mauvais","Faible"]
[null,null,null,null,null,null,null,null,null,null,null,"Mauvais","Faible"]
[null,null,null,null,null,null,null,null,null,null,null,"Mauvais","Faible"]
[null,null,null,null,null,null,null,null,null,null,null,"Mauvais","Faible"]
[null,null,null,null,null,null,null,null,null,null,null,"Mauvais","Faible"]
[null,null,null,null,null,null,null,null,null,null,null,"Mauvais","Faible"]
[null,null,null,null,null,null,null,null,null,null,null,"Mauvais","Faible"]
[null,null,null,null,null,null,null,null,null,null,null,"Mauvais","Faible"]
[null,null,null,null,null,null,null,null,null,null,null,"Mauvais","Faible"]
[null,null,null,null,null,null,null,null,null,null,null,"Mauvais","Faible"]
[null,null,null,null,null,null,null,null,null,null,null,"Mauvais","Faible"]
[null,null,null,null,null,null,null,null,null,null,null,"Mauvais","Faible"]
[null,null,null,null,null,null,null,null,null,null,null,"Mauvais","Faible"]
[null,null,null,null,null,null,null,null,null,null,null,"Mauvais","Faible"]
[null,null,null,null,null,null,null,null,null,null,null,"Mauvais","Faible"]
[null,null,null,null,null,null,null,null,null,null,null,"Mauvais","Faible"]
[null,null,null,null,null,null,null,null,null,null,null,"Mauvais","Faible"]
[null,null,null,null,null,null,null,null,null,null,null,"Mauvais","Faible"]
[null,null,null,null,null,null,null,null,null,null,null,"Mauvais","Faible"]
[null,null,null,null,null,null,null,null,null,null,null,"Mauvais","Faible"]
[null,null,null,null,null,null,null,null,null,null,null,"Mauvais","Faible"]
[null,null,null,null,null,null,null,null,null,null,null,"Mauvais","Faible"]
[null,null,null,null,null,null,null,null,null,null,null,"Mauvais","Faible"]
[null,null,null,null,null,null,null,null,null,null,null,{"$f":"IF(D73<=21,\"Mauvais\",IF(D73<=43,\"Usuel\",IF(D73<=64,\"Bon\")))","v":"Mauvais"},{"$f":"IF(E73<=21,\"Faible\",IF(E73<=43,\"Moyenne\",IF(E73<=64,\"Forte\")))","v":"Faible"}]
[null,null,null,null,null,null,null,null,null,null,null,"Mauvais","Faible"]
[null,null,null,null,null,null,null,null,null,null,null,"Mauvais","Faible"]
[null,null,null,null,null,null,null,null,null,null,null,"Mauvais","Faible"]
[null,null,null,null,null,null,null,null,null,null,null,"Mauvais","Faible"]
[null,null,null,null,null,null,null,null,null,null,null,"Mauvais","Faible"]
[null,null,null,null,null,null,null,null,null,null,null,"Mauvais","Faible"]
[null,null,null,null,null,null,null,null,null,null,null,"Mauvais","Faible"]
[null,null,null,null,null,null,null,null,null,null,null,"Mauvais","Faible"]
[null,null,null,null,null,null,null,null,null,null,null,"Mauvais","Faible"]
[null,null,null,null,null,null,null,null,null,null,null,"Mauvais","Faible"]
[null,null,null,null,null,null,null,null,null,null,null,"Mauvais","Faible"]
[null,null,null,null,null,null,null,null,null,null,null,"Mauvais","Faible"]
[null,null,null,null,null,null,null,null,null,null,null,"Mauvais","Faible"]
[null,null,null,null,null,null,null,null,null,null,null,"Mauvais","Faible"]
[null,null,null,null,null,null,null,null,null,null,null,"Mauvais","Faible"]
[null,null,null,null,null,null,null,null,null,null,null,"Mauvais","Faible"]
[null,null,null,null,null,null,null,null,null,null,null,"Mauvais","Faible"]
[null,null,null,null,null,null,null,null,null,null,null,"Mauvais","Faible"]
[null,null,null,null,null,null,null,null,null,null,null,"Mauvais","Faible"]
[null,null,null,null,null,null,null,null,null,null,null,"Mauvais","Faible"]
[null,null,null,null,null,null,null,null,null,null,null,"Mauvais","Faible"]
[null,null,null,null,null,null,null,null,null,null,null,"Mauvais","Faible"]
[null,null,null,null,null,null,null,null,null,null,null,"Mauvais","Faible"]
[null,null,null,null,null,null,null,null,null,null,null,"Mauvais","Faible"]
[null,null,null,null,null,null,null,null,null,null,null,"Mauvais","Faible"]
[null,null,null,null,null,null,null,null,null,null,null,"Mauvais","Faible"]
[null,null,null,null,null,null,null,null,null,null,null,"Mauvais","Faible"]
[null,null,null,null,null,null,null,null,null,null,null,"Mauvais","Faible"]
[null,null,null,null,null,null,null,null,null,null,null,"Mauvais","Faible"]
[null,null,null,null,null,null,null,null,null,null,null,"Mauvais","Faible"]
[null,null,null,null,null,null,null,null,null,null,null,"Mauvais","Faible"]
[null,null,null,null,null,null,null,null,null,null,null,"Mauvais","Faible"]
[null,null,null,null,null,null,null,null,null,null,null,"Mauvais","Faible"]
[null,null,null,null,null,null,null,null,null,null,null,"Mauvais","Faible"]
[null,null,null,null,null,null,null,null,null,null,null,"Mauvais","Faible"]
[null,null,null,null,null,null,null,null,null,null,null,"Mauvais","Faible"]
[null,null,null,null,null,null,null,null,null,null,null,"Mauvais","Faible"]
[null,null,null,null,null,null,null,null,null,null,null,"Mauvais","Faible"]
[null,null,null,null,null,null,null,null,null,null,null,"Mauvais","Faible"]
[null,null,null,null,null,null,null,null,null,null,null,"Mauvais","Faible"]
[null,null,null,null,null,null,null,null,null,null,null,"Mauvais","Faible"]
[null,null,null,null,null,null,null,null,null,null,null,"Mauvais","Faible"]
[null,null,null,null,null,null,null,null,null,null,null,"Mauvais","Faible"]
[null,null,null,null,null,null,null,null,null,null,null,"Mauvais","Faible"]
[null,null,null,null,null,null,null,null,null,null,null,"Mauvais","Faible"]
[null,null,null,null,null,null,null,null,null,null,null,"Mauvais","Faible"]
[null,null,null,null,null,null,null,null,null,null,null,"Mauvais","Faible"]
[null,null,null,null,null,null,null,null,null,null,null,"Mauvais","Faible"]
[null,null,null,null,null,null,null,null,null,null,null,"Mauvais","Faible"]
[null,null,null,null,null,null,null,null,null,null,null,"Mauvais","Faible"]
[null,null,null,null,null,null,null,null,null,null,null,"Mauvais","Faible"]
[null,null,null,null,null,null,null,null,null,null,null,"Mauvais","Faible"]
[null,null,null,null,null,null,null,null,null,null,null,"Mauvais","Faible"]
[null,null,null,null,null,null,null,null,null,null,null,"Mauvais","Faible"]
[null,null,null,null,null,null,null,null,null,null,null,"Mauvais","Faible"]
[null,null,null,null,null,null,null,null,null,null,null,"Mauvais","Faible"]
[null,null,null,null,null,null,null,null,null,null,null,"Mauvais","Faible"]
[null,null,null,null,null,null,null,null,null,null,null,"Mauvais","Faible"]
[null,null,null,null,null,null,null,null,null,null,null,"Mauvais","Faible"]
[null,null,null,null,null,null,null,null,null,null,null,"Mauvais","Faible"]
[null,null,null,null,null,null,null,null,null,null,null,"Mauvais","Faible"]
[null,null,null,null,null,null,null,null,null,null,null,"Mauvais","Faible"]
[null,null,null,null,null,null,null,null,null,null,null,"Mauvais","Faible"]
[null,null,null,null,null,null,null,null,null,null,null,{"$f":"IF(D137<=21,\"Mauvais\",IF(D137<=43,\"Usuel\",IF(D137<=64,\"Bon\")))","v":"Mauvais"},{"$f":"IF(E137<=21,\"Faible\",IF(E137<=43,\"Moyenne\",IF(E137<=64,\"Forte\")))","v":"Faible"}]
[null,null,null,null,null,null,null,null,null,null,null,"Mauvais","Faible"]
[null,null,null,null,null,null,null,null,null,null,null,"Mauvais","Faible"]
[null,null,null,null,null,null,null,null,null,null,null,"Mauvais","Faible"]
[null,null,null,null,null,null,null,null,null,null,null,"Mauvais","Faible"]
[null,null,null,null,null,null,null,null,null,null,null,"Mauvais","Faible"]
[null,null,null,null,null,null,null,null,null,null,null,"Mauvais","Faible"]
[null,null,null,null,null,null,null,null,null,null,null,"Mauvais","Faible"]
[null,null,null,null,null,null,null,null,null,null,null,"Mauvais","Faible"]
[null,null,null,null,null,null,null,null,null,null,null,"Mauvais","Faible"]
[null,null,null,null,null,null,null,null,null,null,null,"Mauvais","Faible"]
[null,null,null,null,null,null,null,null,null,null,null,"Mauvais","Faible"]
[null,null,null,null,null,null,null,null,null,null,null,"Mauvais","Faible"]
[null,null,null,null,null,null,null,null,null,null,null,"Mauvais","Faible"]
[null,null,null,null,null,null,null,null,null,null,null,"Mauvais","Faible"]
[null,null,null,null,null,null,null,null,null,null,null,"Mauvais","Faible"]
[null,null,null,null,null,null,null,null,null,null,null,"Mauvais","Faible"]
[null,null,null,null,null,null,null,null,null,null,null,"Mauvais","Faible"]
[null,null,null,null,null,null,null,null,null,null,null,"Mauvais","Faible"]
[null,null,null,null,null,null,null,null,null,null,null,"Mauvais","Faible"]
[null,null,null,null,null,null,null,null,null,null,null,"Mauvais","Faible"]
[null,null,null,null,null,null,null,null,null,null,null,"Mauvais","Faible"]
[null,null,null,null,null,null,null,null,null,null,null,"Mauvais","Faible"]
[null,null,null,null,null,null,null,null,null,null,null,"Mauvais","Faible"]
[null,null,null,null,null,null,null,null,null,null,null,"Mauvais","Faible"]
[null,null,null,null,null,null,null,null,null,null,null,"Mauvais","Faible"]
[null,null,null,null,null,null,null,null,null,null,null,"Mauvais","Faible"]
[null,null,null,null,null,null,null,null,null,null,null,"Mauvais","Faible"]
[null,null,null,null,null,null,null,null,null,null,null,"Mauvais","Faible"]
[null,null,null,null,null,null,null,null,null,null,null,"Mauvais","Faible"]
[null,null,null,null,null,null,null,null,null,null,null,"Mauvais","Faible"]
[null,null,null,null,null,null,null,null,null,null,null,"Mauvais","Faible"]
[null,null,null,null,null,null,null,null,null,null,null,"Mauvais","Faible"]
[null,null,null,null,null,null,null,null,null,null,null,"Mauvais","Faible"]
[null,null,null,null,null,null,null,null,null,null,null,"Mauvais","Faible"]
[null,null,null,null,null,null,null,null,null,null,null,"Mauvais","Faible"]
[null,null,null,null,null,null,null,null,null,null,null,"Mauvais","Faible"]
[null,null,null,null,null,null,null,null,null,null,null,"Mauvais","Faible"]
[null,null,null,null,null,null,null,null,null,null,null,"Mauvais","Faible"]
[null,null,null,null,null,null,null,null,null,null,null,"Mauvais","Faible"]
[null,null,null,null,null,null,null,null,null,null,null,"Mauvais","Faible"]
[null,null,null,null,null,null,null,null,null,null,null,"Mauvais","Faible"]
[null,null,null,null,null,null,null,null,null,null,null,"Mauvais","Faible"]
[null,null,null,null,null,null,null,null,null,null,null,"Mauvais","Faible"]
[null,null,null,null,null,null,null,null,null,null,null,"Mauvais","Faible"]
[null,null,null,null,null,null,null,null,null,null,null,"Mauvais","Faible"]
[null,null,null,null,null,null,null,null,null,null,null,"Mauvais","Faible"]
[null,null,null,null,null,null,null,null,null,null,null,"Mauvais","Faible"]
[null,null,null,null,null,null,null,null,null,null,null,"Mauvais","Faible"]
[null,null,null,null,null,null,null,null,null,null,null,"Mauvais","Faible"]
[null,null,null,null,null,null,null,null,null,null,null,"Mauvais","Faible"]
[null,null,null,null,null,null,null,null,null,null,null,"Mauvais","Faible"]
[null,null,null,null,null,null,null,null,null,null,null,"Mauvais","Faible"]
[null,null,null,null,null,null,null,null,null,null,null,"Mauvais","Faible"]
[null,null,null,null,null,null,null,null,null,null,null,"Mauvais","Faible"]
[null,null,null,null,null,null,null,null,null,null,null,"Mauvais","Faible"]
[null,null,null,null,null,null,null,null,null,null,null,"Mauvais","Faible"]
[null,null,null,null,null,null,null,null,null,null,null,"Mauvais","Faible"]
[null,null,null,null,null,null,null,null,null,null,null,"Mauvais","Faible"]
[null,null,null,null,null,null,null,null,null,null,null,"Mauvais","Faible"]
[null,null,null,null,null,null,null,null,null,null,null,"Mauvais","Faible"]
[null,null,null,null,null,null,null,null,null,null,null,"Mauvais","Faible"]
[null,null,null,null,null,null,null,null,null,null,null,"Mauvais","Faible"]
[null,null,null,null,null,null,null,null,null,null,null,"Mauvais","Faible"]
[null,null,null,null,null,null,null,null,null,null,null,{"$f":"IF(D201<=21,\"Mauvais\",IF(D201<=43,\"Usuel\",IF(D201<=64,\"Bon\")))","v":"Mauvais"},{"$f":"IF(E201<=21,\"Faible\",IF(E201<=43,\"Moyenne\",IF(E201<=64,\"Forte\")))","v":"Faible"}]
[null,null,null,null,null,null,null,null,null,null,null,"Mauvais","Faible"]
[null,null,null,null,null,null,null,null,null,null,null,"Mauvais","Faible"]
[null,null,null,null,null,null,null,null,null,null,null,"Mauvais","Faible"]
[null,null,null,null,null,null,null,null,null,null,null,"Mauvais","Faible"]
[null,null,null,null,null,null,null,null,null,null,null,"Mauvais","Faible"]
[null,null,null,null,null,null,null,null,null,null,null,"Mauvais","Faible"]
[null,null,null,null,null,null,null,null,null,null,null,"Mauvais","Faible"]
[null,null,null,null,null,null,null,null,null,null,null,"Mauvais","Faible"]
[null,null,null,null,null,null,null,null,null,null,null,"Mauvais","Faible"]
[null,null,null,null,null,null,null,null,null,null,null,"Mauvais","Faible"]
[null,null,null,null,null,null,null,null,null,null,null,"Mauvais","Faible"]
[null,null,null,null,null,null,null,null,null,null,null,"Mauvais","Faible"]
[null,null,null,null,null,null,null,null,null,null,null,"Mauvais","Faible"]
[null,null,null,null,null,null,null,null,null,null,null,"Mauvais","Faible"]
[null,null,null,null,null,null,null,null,null,null,null,"Mauvais","Faible"]
[null,null,null,null,null,null,null,null,null,null,null,"Mauvais","Faible"]
[null,null,null,null,null,null,null,null,null,null,null,"Mauvais","Faible"]
[null,null,null,null,null,null,null,null,null,null,null,"Mauvais","Faible"]
[null,null,null,null,null,null,null,null,null,null,null,"Mauvais","Faible"]
[null,null,null,null,null,null,null,null,null,null,null,"Mauvais","Faible"]
[null,null,null,null,null,null,null,null,null,null,null,"Mauvais","Faible"]
[null,null,null,null,null,null,null,null,null,null,null,"Mauvais","Faible"]
[null,null,null,null,null,null,null,null,null,null,null,"Mauvais","Faible"]
[null,null,null,null,null,null,null,null,null,null,null,"Mauvais","Faible"]
[null,null,null,null,null,null,null,null,null,null,null,"Mauvais","Faible"]
[null,null,null,null,null,null,null,null,null,null,null,"Mauvais","Faible"]
[null,null,null,null,null,null,null,null,null,null,null,"Mauvais","Faible"]
[null,null,null,null,null,null,null,null,null,null,null,"Mauvais","Faible"]
[null,null,null,null,null,null,null,null,null,null,null,"Mauvais","Faible"]
[null,null,null,null,null,null,null,null,null,null,null,"Mauvais","Faible"]
[null,null,null,null,null,null,null,null,null,null,null,"Mauvais","Faible"]
[null,null,null,null,null,null,null,null,null,null,null,"Mauvais","Faible"]
[null,null,null,null,null,null,null,null,null,null,null,"Mauvais","Faible"]
[null,null,null,null,null,null,null,null,null,null,null,"Mauvais","Faible"]
[null,null,null,null,null,null,null,null,null,null,null,"Mauvais","Faible"]
[null,null,null,null,null,null,null,null,null,null,null,"Mauvais","Faible"]
[null,null,null,null,null,null,null,null,null,null,null,"Mauvais","Faible"]
[null,null,null,null,null,null,null,null,null,null,null,"Mauvais","Faible"]
[null,null,null,null,null,null,null,null,null,null,null,"Mauvais","Faible"]
[null,null,null,null,null,null,null,null,null,null,null,"Mauvais","Faible"]
[null,null,null,null,null,null,null,null,null,null,null,"Mauvais","Faible"]
[null,null,null,null,null,null,null,null,null,null,null,"Mauvais","Faible"]
[null,null,null,null,null,null,null,null,null,null,null,"Mauvais","Faible"]
[null,null,null,null,null,null,null,null,null,null,null,"Mauvais","Faible"]
[null,null,null,null,null,null,null,null,null,null,null,"Mauvais","Faible"]
[null,null,null,null,null,null,null,null,null,null,null,"Mauvais","Faible"]
[null,null,null,null,null,null,null,null,null,null,null,"Mauvais","Faible"]
[null,null,null,null,null,null,null,null,null,null,null,"Mauvais","Faible"]
[null,null,null,null,null,null,null,null,null,null,null,"Mauvais","Faible"]
[null,null,null,null,null,null,null,null,null,null,null,"Mauvais","Faible"]
[null,null,null,null,null,null,null,null,null,null,null,"Mauvais","Faible"]
[null,null,null,null,null,null,null,null,null,null,null,"Mauvais","Faible"]
[null,null,null,null,null,null,null,null,null,null,null,"Mauvais","Faible"]
[null,null,null,null,null,null,null,null,null,null,null,"Mauvais","Faible"]
[null,null,null,null,null,null,null,null,null,null,null,"Mauvais","Faible"]
[null,null,null,null,null,null,null,null,null,null,null,"Mauvais","Faible"]
[null,null,null,null,null,null,null,null,null,null,null,"Mauvais","Faible"]
[null,null,null,null,null,null,null,null,null,null,null,"Mauvais","Faible"]
[null,null,null,null,null,null,null,null,null,null,null,"Mauvais","Faible"]
[null,null,null,null,null,null,null,null,null,null,null,"Mauvais","Faible"]
[null,null,null,null,null,null,null,null,null,null,null,"Mauvais","Faible"]
[null,null,null,null,null,null,null,null,null,null,null,"Mauvais","Faible"]
[null,null,null,null,null,null,null,null,null,null,null,"Mauvais","Faible"]
[null,null,null,null,null,null,null,null,null,null,null,{"$f":"IF(D265<=21,\"Mauvais\",IF(D265<=43,\"Usuel\",IF(D265<=64,\"Bon\")))","v":"Mauvais"},{"$f":"IF(E265<=21,\"Faible\",IF(E265<=43,\"Moyenne\",IF(E265<=64,\"Forte\")))","v":"Faible"}]
[null,null,null,null,null,null,null,null,null,null,null,"Mauvais","Faible"]
[null,null,null,null,null,null,null,null,null,null,null,"Mauvais","Faible"]
[null,null,null,null,null,null,null,null,null,null,null,"Mauvais","Faible"]
[null,null,null,null,null,null,null,null,null,null,null,"Mauvais","Faible"]
[null,null,null,null,null,null,null,null,null,null,null,"Mauvais","Faible"]
[null,null,null,null,null,null,null,null,null,null,null,"Mauvais","Faible"]
[null,null,null,null,null,null,null,null,null,null,null,"Mauvais","Faible"]
[null,null,null,null,null,null,null,null,null,null,null,"Mauvais","Faible"]
[null,null,null,null,null,null,null,null,null,null,null,"Mauvais","Faible"]
[null,null,null,null,null,null,null,null,null,null,null,"Mauvais","Faible"]
[null,null,null,null,null,null,null,null,null,null,null,"Mauvais","Faible"]
[null,null,null,null,null,null,null,null,null,null,null,"Mauvais","Faible"]
[null,null,null,null,null,null,null,null,null,null,null,"Mauvais","Faible"]
[null,null,null,null,null,null,null,null,null,null,null,"Mauvais","Faible"]
[null,null,null,null,null,null,null,null,null,null,null,"Mauvais","Faible"]
[null,null,null,null,null,null,null,null,null,null,null,"Mauvais","Faible"]
[null,null,null,null,null,null,null,null,null,null,null,"Mauvais","Faible"]
[null,null,null,null,null,null,null,null,null,null,null,"Mauvais","Faible"]
[null,null,null,null,null,null,null,null,null,null,null,"Mauvais","Faible"]
[null,null,null,null,null,null,null,null,null,null,null,"Mauvais","Faible"]
[null,null,null,null,null,null,null,null,null,null,null,"Mauvais","Faible"]
[null,null,null,null,null,null,null,null,null,null,null,"Mauvais","Faible"]
[null,null,null,null,null,null,null,null,null,null,null,"Mauvais","Faible"]
[null,null,null,null,null,null,null,null,null,null,null,"Mauvais","Faible"]
[null,null,null,null,null,null,null,null,null,null,null,"Mauvais","Faible"]
[null,null,null,null,null,null,null,null,null,null,null,"Mauvais","Faible"]
[null,null,null,null,null,null,null,null,null,null,null,"Mauvais","Faible"]
[null,null,null,null,null,null,null,null,null,null,null,"Mauvais","Faible"]
[null,null,null,null,null,null,null,null,null,null,null,"Mauvais","Faible"]
[null,null,null,null,null,null,null,null,null,null,null,"Mauvais","Faible"]
[null,null,null,null,null,null,null,null,null,null,null,"Mauvais","Faible"]
[null,null,null,null,null,null,null,null,null,null,null,"Mauvais","Faible"]
[null,null,null,null,null,null,null,null,null,null,null,"Mauvais","Faible"]
[null,null,null,null,null,null,null,null,null,null,null,"Mauvais","Faible"]
[null,null,null,null,null,null,null,null,null,null,null,"Mauvais","Faible"]
[null,null,null,null,null,null,null,null,null,null,null,"Mauvais","Faible"]
[null,null,null,null,null,null,null,null,null,null,null,"Mauvais","Faible"]
[null,null,null,null,null,null,null,null,null,null,null,"Mauvais","Faible"]
[null,null,null,null,null,null,null,null,null,null,null,"Mauvais","Faible"]
[null,null,null,null,null,null,null,null,null,null,null,"Mauvais","Faible"]
[null,null,null,null,null,null,null,null,null,null,null,"Mauvais","Faible"]
[null,null,null,null,null,null,null,null,null,null,null,"Mauvais","Faible"]
[null,null,null,null,null,null,null,null,null,null,null,"Mauvais","Faible"]
[null,null,null,null,null,null,null,null,null,null,null,"Mauvais","Faible"]
[null,null,null,null,null,null,null,null,null,null,null,"Mauvais","Faible"]
[null,null,null,null,null,null,null,null,null,null,null,"Mauvais","Faible"]
[null,null,null,null,null,null,null,null,null,null,null,"Mauvais","Faible"]
[null,null,null,null,null,null,null,null,null,null,null,"Mauvais","Faible"]
[null,null,null,null,null,null,null,null,null,null,null,"Mauvais","Faible"]
[null,null,null,null,null,null,null,null,null,null,null,"Mauvais","Faible"]
[null,null,null,null,null,null,null,null,null,null,null,"Mauvais","Faible"]
[null,null,null,null,null,null,null,null,null,null,null,"Mauvais","Faible"]
[null,null,null,null,null,null,null,null,null,null,null,"Mauvais","Faible"]
[null,null,null,null,null,null,null,null,null,null,null,"Mauvais","Faible"]
[null,null,null,null,null,null,null,null,null,null,null,"Mauvais","Faible"]
[null,null,null,null,null,null,null,null,null,null,null,"Mauvais","Faible"]
[null,null,null,null,null,null,null,null,null,null,null,"Mauvais","Faible"]
[null,null,null,null,null,null,null,null,null,null,null,"Mauvais","Faible"]
[null,null,null,null,null,null,null,null,null,null,null,"Mauvais","Faible"]
[null,null,null,null,null,null,null,null,null,null,null,"Mauvais","Faible"]
[null,null,null,null,null,null,null,null,null,null,null,"Mauvais","Faible"]
[null,null,null,null,null,null,null,null,null,null,null,"Mauvais","Faible"]
[null,null,null,null,null,null,null,null,null,null,null,"Mauvais","Faible"]
[null,null,null,null,null,null,null,null,null,null,null,{"$f":"IF(D329<=21,\"Mauvais\",IF(D329<=43,\"Usuel\",IF(D329<=64,\"Bon\")))","v":"Mauvais"},{"$f":"IF(E329<=21,\"Faible\",IF(E329<=43,\"Moyenne\",IF(E329<=64,\"Forte\")))","v":"Faible"}]
[null,null,null,null,null,null,null,null,null,null,null,"Mauvais","Faible"]
[null,null,null,null,null,null,null,null,null,null,null,"Mauvais","Faible"]
[null,null,null,null,null,null,null,null,null,null,null,"Mauvais","Faible"]
[null,null,null,null,null,null,null,null,null,null,null,"Mauvais","Faible"]
[null,null,null,null,null,null,null,null,null,null,null,"Mauvais","Faible"]
[null,null,null,null,null,null,null,null,null,null,null,"Mauvais","Faible"]
[null,null,null,null,null,null,null,null,null,null,null,"Mauvais","Faible"]
[null,null,null,null,null,null,null,null,null,null,null,"Mauvais","Faible"]
[null,null,null,null,null,null,null,null,null,null,null,"Mauvais","Faible"]
[null,null,null,null,null,null,null,null,null,null,null,"Mauvais","Faible"]
[null,null,null,null,null,null,null,null,null,null,null,"Mauvais","Faible"]
[null,null,null,null,null,null,null,null,null,null,null,"Mauvais","Faible"]
[null,null,null,null,null,null,null,null,null,null,null,"Mauvais","Faible"]
[null,null,null,null,null,null,null,null,null,null,null,"Mauvais","Faible"]
[null,null,null,null,null,null,null,null,null,null,null,"Mauvais","Faible"]
[null,null,null,null,null,null,null,null,null,null,null,"Mauvais","Faible"]
[null,null,null,null,null,null,null,null,null,null,null,"Mauvais","Faible"]
[null,null,null,null,null,null,null,null,null,null,null,"Mauvais","Faible"]
[null,null,null,null,null,null,null,null,null,null,null,"Mauvais","Faible"]
[null,null,null,null,null,null,null,null,null,null,null,"Mauvais","Faible"]
[null,null,null,null,null,null,null,null,null,null,null,"Mauvais","Faible"]
[null,null,null,null,null,null,null,null,null,null,null,"Mauvais","Faible"]
[null,null,null,null,null,null,null,null,null,null,null,"Mauvais","Faible"]
[null,null,null,null,null,null,null,null,null,null,null,"Mauvais","Faible"]
[null,null,null,null,null,null,null,null,null,null,null,"Mauvais","Faible"]
[null,null,null,null,null,null,null,null,null,null,null,"Mauvais","Faible"]
[null,null,null,null,null,null,null,null,null,null,null,"Mauvais","Faible"]
[null,null,null,null,null,null,null,null,null,null,null,"Mauvais","Faible"]
[null,null,null,null,null,null,null,null,null,null,null,"Mauvais","Faible"]
[null,null,null,null,null,null,null,null,null,null,null,"Mauvais","Faible"]
[null,null,null,null,null,null,null,null,null,null,null,"Mauvais","Faible"]
[null,null,null,null,null,null,null,null,null,null,null,"Mauvais","Faible"]
[null,null,null,null,null,null,null,null,null,null,null,"Mauvais","Faible"]
[null,null,null,null,null,null,null,null,null,null,null,"Mauvais","Faible"]
[null,null,null,null,null,null,null,null,null,null,null,"Mauvais","Faible"]
[null,null,null,null,null,null,null,null,null,null,null,"Mauvais","Faible"]
[null,null,null,null,null,null,null,null,null,null,null,"Mauvais","Faible"]
[null,null,null,null,null,null,null,null,null,null,null,"Mauvais","Faible"]
[null,null,null,null,null,null,null,null,null,null,null,"Mauvais","Faible"]
[null,null,null,null,null,null,null,null,null,null,null,"Mauvais","Faible"]
[null,null,null,null,null,null,null,null,null,null,null,"Mauvais","Faible"]
[null,null,null,null,null,null,null,null,null,null,null,"Mauvais","Faible"]
[null,null,null,null,null,null,null,null,null,null,null,"Mauvais","Faible"]
[null,null,null,null,null,null,null,null,null,null,null,"Mauvais","Faible"]
[null,null,null,null,null,null,null,null,null,null,null,"Mauvais","Faible"]
[null,null,null,null,null,null,null,null,null,null,null,"Mauvais","Faible"]
[null,null,null,null,null,null,null,null,null,null,null,"Mauvais","Faible"]
[null,null,null,null,null,null,null,null,null,null,null,"Mauvais","Faible"]
[null,null,null,null,null,null,null,null,null,null,null,"Mauvais","Faible"]
[null,null,null,null,null,null,null,null,null,null,null,"Mauvais","Faible"]
[null,null,null,null,null,null,null,null,null,null,null,"Mauvais","Faible"]
[null,null,null,null,null,null,null,null,null,null,null,"Mauvais","Faible"]
[null,null,null,null,null,null,null,null,null,null,null,"Mauvais","Faible"]
[null,null,null,null,null,null,null,null,null,null,null,"Mauvais","Faible"]
[null,null,null,null,null,null,null,null,null,null,null,"Mauvais","Faible"]
[null,null,null,null,null,null,null,null,null,null,null,"Mauvais","Faible"]
[null,null,null,null,null,null,null,null,null,null,null,"Mauvais","Faible"]
[null,null,null,null,null,null,null,null,null,null,null,"Mauvais","Faible"]
[null,null,null,null,null,null,null,null,null,null,null,"Mauvais","Faible"]
[null,null,null,null,null,null,null,null,null,null,null,"Mauvais","Faible"]
[null,null,null,null,null,null,null,null,null,null,null,"Mauvais","Faible"]
[null,null,null,null,null,null,null,null,null,null,null,"Mauvais","Faible"]
[null,null,null,null,null,null,null,null,null,null,null,"Mauvais","Faible"]
[null,null,null,null,null,null,null,null,null,null,null,{"$f":"IF(D393<=21,\"Mauvais\",IF(D393<=43,\"Usuel\",IF(D393<=64,\"Bon\")))","v":"Mauvais"},{"$f":"IF(E393<=21,\"Faible\",IF(E393<=43,\"Moyenne\",IF(E393<=64,\"Forte\")))","v":"Faible"}]
[null,null,null,null,null,null,null,null,null,null,null,"Mauvais","Faible"]
[null,null,null,null,null,null,null,null,null,null,null,"Mauvais","Faible"]
[null,null,null,null,null,null,null,null,null,null,null,"Mauvais","Faible"]
[null,null,null,null,null,null,null,null,null,null,null,"Mauvais","Faible"]
[null,null,null,null,null,null,null,null,null,null,null,"Mauvais","Faible"]
[null,null,null,null,null,null,null,null,null,null,null,"Mauvais","Faible"]
[null,null,null,null,null,null,null,null,null,null,null,"Mauvais","Faible"]
[null,null,null,null,null,null,null,null,null,null,null,"Mauvais","Faible"]
[null,null,null,null,null,null,null,null,null,null,null,"Mauvais","Faible"]
[null,null,null,null,null,null,null,null,null,null,null,"Mauvais","Faible"]
[null,null,null,null,null,null,null,null,null,null,null,"Mauvais","Faible"]
[null,null,null,null,null,null,null,null,null,null,null,"Mauvais","Faible"]
[null,null,null,null,null,null,null,null,null,null,null,"Mauvais","Faible"]
[null,null,null,null,null,null,null,null,null,null,null,"Mauvais","Faible"]
[null,null,null,null,null,null,null,null,null,null,null,"Mauvais","Faible"]
[null,null,null,null,null,null,null,null,null,null,null,"Mauvais","Faible"]
[null,null,null,null,null,null,null,null,null,null,null,"Mauvais","Faible"]
[null,null,null,null,null,null,null,null,null,null,null,"Mauvais","Faible"]
[null,null,null,null,null,null,null,null,null,null,null,"Mauvais","Faible"]
[null,null,null,null,null,null,null,null,null,null,null,"Mauvais","Faible"]
[null,null,null,null,null,null,null,null,null,null,null,"Mauvais","Faible"]
[null,null,null,null,null,null,null,null,null,null,null,"Mauvais","Faible"]
[null,null,null,null,null,null,null,null,null,null,null,"Mauvais","Faible"]
[null,null,null,null,null,null,null,null,null,null,null,"Mauvais","Faible"]
[null,null,null,null,null,null,null,null,null,null,null,"Mauvais","Faible"]
[null,null,null,null,null,null,null,null,null,null,null,"Mauvais","Faible"]
[null,null,null,null,null,null,null,null,null,null,null,"Mauvais","Faible"]
[null,null,null,null,null,null,null,null,null,null,null,"Mauvais","Faible"]
[null,null,null,null,null,null,null,null,null,null,null,"Mauvais","Faible"]
[null,null,null,null,null,null,null,null,null,null,null,"Mauvais","Faible"]
[null,null,null,null,null,null,null,null,null,null,null,"Mauvais","Faible"]
[null,null,null,null,null,null,null,null,null,null,null,"Mauvais","Faible"]
[null,null,null,null,null,null,null,null,null,null,null,"Mauvais","Faible"]
[null,null,null,null,null,null,null,null,null,null,null,"Mauvais","Faible"]
[null,null,null,null,null,null,null,null,null,null,null,"Mauvais","Faible"]
[null,null,null,null,null,null,null,null,null,null,null,"Mauvais","Faible"]
[null,null,null,null,null,null,null,null,null,null,null,"Mauvais","Faible"]
[null,null,null,null,null,null,null,null,null,null,null,"Mauvais","Faible"]
[null,null,null,null,null,null,null,null,null,null,null,"Mauvais","Faible"]
[null,null,null,null,null,null,null,null,null,null,null,"Mauvais","Faible"]
[null,null,null,null,null,null,null,null,null,null,null,"Mauvais","Faible"]
[null,null,null,null,null,null,null,null,null,null,null,"Mauvais","Faible"]
[null,null,null,null,null,null,null,null,null,null,null,"Mauvais","Faible"]
[null,null,null,null,null,null,null,null,null,null,null,"Mauvais","Faible"]
[null,null,null,null,null,null,null,null,null,null,null,"Mauvais","Faible"]
[null,null,null,null,null,null,null,null,null,null,null,"Mauvais","Faible"]
[null,null,null,null,null,null,null,null,null,null,null,"Mauvais","Faible"]
[null,null,null,null,null,null,null,null,null,null,null,"Mauvais","Faible"]
[null,null,null,null,null,null,null,null,null,null,null,"Mauvais","Faible"]
[null,null,null,null,null,null,null,null,null,null,null,"Mauvais","Faible"]
[null,null,null,null,null,null,null,null,null,null,null,"Mauvais","Faible"]

{"sheet":"TABLEAU RESULTAT","index":5,"n_rows":18,"n_cols":5,"rows_kept":18,"cut":false,"hidden":false,"merged":[[3,0,5,0],[3,2,3,3],[4,2,4,3],[5,2,5,3],[8,0,10,0],[8,2,8,3],[9,2,9,3],[10,2,10,3],[15,0,17,0],[13,2,13,4],[17,2,17,4],[16,3,16,4],[15,3,15,4]]}
[]
[]
[]
["NOTE ETAT","1 <> 21","MAUVAIS"]
[null,"22<> 43","USUEL"]
[null,"COMPRISE ENTRE 44 ET 64","BON"]
[]
[]
["NOTE CRITICITE","COMPRISE ENTRE 1 ET 21","FAIBLE"]
[null,"COMPRISE ENTRE 22 ET 43","MOYENNE"]
[null,"COMPRISE ENTRE 44 ET 64","FORTE"]
[]
[]
[null,null,"CRITICITE"]
[null,null,{"$f":"C9","v":"FAIBLE"},{"$f":"C10","v":"MOYENNE"},{"$f":"C11","v":"FORTE"}]
["Resultat",{"$f":"C4","v":"MAUVAIS"},"B","C"]
[null,{"$f":"C5","v":"USUEL"},null,"B"]
[null,{"$f":"C6","v":"BON"},"A"]